Cogmind - Beta 12 @@@ ROGUE MODE // 2023.12.15 @ 17:17:37 Player: KTG-V3 Result: Heading to fleet! Performance ------------- Evolutions (9) 4500 Regions Visited (30) 6000 Robots Destroyed (695) 3475 Value Destroyed (33185) 33185 Prototype IDs (290) 5800 Alien Tech Used (10) 2000 Bonus (37459) 37459 TOTAL SCORE: 92419 Bonus ------- High Alert Combat Kills 6293 Follower Combat Kills 3011 Entered Garrisons 200 Used RIF Installer 1000 Network Hubs Disabled 200 Aligned with FarCom 300 Built Enhanced Grunts 300 Met R17 at Cetus 500 Used Core Reset Matrix 3000 Destroyed MAIN.C Guards 500 Met MAIN.C 5000 Destroyed MAIN.C Shell 5000 Destroyed MAIN.C 10000 Win 3000 Friendly Fire -845 Cogmind --------- Core Integrity 1235/1600 Matter 300/300 Energy 1067/1090 System Corruption 0% Temperature Cool (11) Movement Treading (143) Location To Fleet Rendezvous Parts ------- > --- POWER (4) -------- Reinforced Quantum Reactor Zero-point Reactor Vortex Chain Reactor > --- PROPULSION (6) --- Experimental Biometal Heavy Treads Experimental Biometal Heavy Treads Enhanced Armored Heavy Treads > --- UTILITY (11) ----- Experimental Cooling System Advanced Coolant Injector Experimental Coolant Injector Huge Storage Unit Core Analyzer Improved Kinecellerator Quantum Capacitor Centrium Medium Armor Plating Graphene Brace AEGIS Remote Shield > --- WEAPON (4) ------- Compact HERF Cannon Null Cannon Sigix Broadsword > --- INVENTORY (25) --- Medium Treads Medium Treads Advanced Cooling System Experimental Cooling System Advanced Coolant Injector Advanced Energy Well (500) Advanced Energy Well (500) Experimental Energy Well (600) Experimental Matter Compressor (500) Advanced Particle Accelerator Experimental Weapon Cycler Experimental Force Field AEGIS Remote Shield Experimental System Purifier Long-range Tractor Beam Spacefold Activator Compact HERF Cannon Enhanced Nova Cannon Enhanced Nova Cannon Hypervelocity Multirail Compact Mass Driver Peak State ------------ > --- POWER ------------ Quantum Reactor Zero-point Reactor Vortex Chain Reactor > --- PROPULSION ------- Experimental Biometal Heavy Treads Experimental Biometal Heavy Treads Enhanced Armored Heavy Treads > --- UTILITY ---------- Experimental Cooling System Experimental Coolant Injector Huge Storage Unit Core Analyzer Improved Kinecellerator Quantum Capacitor Centrium Medium Armor Plating Graphene Brace AEGIS Remote Shield Spacefold Activator > --- WEAPON ----------- Compact HERF Cannon Enhanced Nova Cannon Hypervelocity Multirail Graviton Cannon > --- INVENTORY -------- Medium Treads Medium Treads Advanced Cooling System Experimental Cooling System Advanced Coolant Injector Advanced Coolant Injector Advanced Energy Well Advanced Energy Well Experimental Energy Well Experimental Matter Compressor Advanced Particle Accelerator Experimental Weapon Cycler Advanced Force Field Experimental Force Field Experimental System Purifier Long-range Tractor Beam Heavy Quantum Rifle Heavy Quantum Rifle Heavy Quantum Rifle Compact HERF Cannon Enhanced Nova Cannon Null Cannon Compact Mass Driver Sigix Broadsword [Rating: 243] Favorites ----------- Power Antimatter Reactor Engine Ion Engine Power Core Reinforced Fission Core Reactor Antimatter Reactor Propulsion Heavy Treads Treads Heavy Treads Leg Improved Aluminum Leg Wheel Wheel Hover Unit Experimental Gyrokinetic Inverter Utility Huge Storage Unit Device Advanced Cooling System Storage Huge Storage Unit Processor Advanced Signal Interpreter Hackware Relay Coupler [NC] Protection Medium Armor Plating Artifact Phase Armor Weapon Improved Light Cannon Energy Gun Gamma Rifle Energy Cannon Compact HERF Cannon Ballistic Gun Heavy Assault Rifle Ballistic Cannon Improved Light Cannon Launcher Rocket Array Special Weapon Improved Remote Datajack Slashing Weapon Sigix Broadsword Build | -11 -10 -10 -9 -9 -9 -8 -8 -8 -8 -7 -7 -7 -6 -5 -5 -5 -5 -5 -5 -5 -4 -4 -4 -3 -3 -2 -2 -2 -1 -1 ------- Run | Jun Mat Min Mat Min Exi Min Mat Gar Mat Fac Was Fac Fac Fac Was Fac Ext Cet Arc Hub Fac Was Fac Res Tes Res Qua Sec Acc Com Slots Evolved 18 | . . . 2 . . . 2 . . 2 . . 2 2 . . . . . . 2 . . 2 . 2 . . 2 . Power 3 | . . . . . . . . . . . . . . 1 . . . . . . . . . . . 1 . . 1 . Propulsion 4 | . . . 1 . . . . . . 1 . . . . . . . . . . . . . 2 . . . . . . Utility 9 | . . . 1 . . . 2 . . 1 . . 2 . . . . . . . 2 . . . . 1 . . . . Weapon 2 | . . . . . . . . . . . . . . 1 . . . . . . . . . . . . . . 1 . Parts Attached 1078 | 7 16 6 27 4 44 2 29 17 12 26 31 6 77 16 18 72 48 13 12 28 41 24 39 39 47 105 62 69 71 70 Power 67 | 1 1 . 1 1 7 . 3 1 3 2 2 . 1 1 2 1 . 1 3 . 1 4 2 1 3 9 3 3 3 7 Engine 17 | 1 1 . 1 1 2 . 2 1 3 2 . . . 1 . . . . 1 . . . . . . 1 . . . . Core 6 | . . . . . 4 . 1 . . . . . . . . . . . . . . . 1 . . . . . . . Reactor 44 | . . . . . 1 . . . . . 2 . 1 . 2 1 . 1 2 . 1 4 1 1 3 8 3 3 3 7 Propulsion 105 | 2 1 1 12 . 11 . 13 4 2 3 5 . 3 1 2 1 2 . . . . 9 . 1 3 11 3 5 3 7 Treads 93 | 2 1 1 7 . 8 . 13 4 2 3 5 . 2 1 2 1 2 . . . . 8 . 1 3 11 3 5 3 5 Leg 8 | . . . 5 . 3 . . . . . . . . . . . . . . . . . . . . . . . . . Wheel 1 | . . . . . . . . . . . . . 1 . . . . . . . . . . . . . . . . . Hover 3 | . . . . . . . . . . . . . . . . . . . . . . 1 . . . . . . . 2 Flight . | . . . . . . . . . . . . . . . . . . . . . . . . . . . . . . . Utility 610 | 2 2 3 6 1 14 . 8 7 3 10 12 4 43 9 9 57 37 9 9 25 24 5 17 24 25 69 40 45 54 37 Device 509 | 1 1 3 1 1 7 . 6 4 1 8 11 3 39 8 5 53 29 7 8 20 24 5 11 19 18 57 36 39 52 32 Storage 21 | 1 1 . 1 . 6 . . . . . . . . . . 2 . . . . . . . . 3 . 1 3 1 2 Processor 14 | . . . . . . . . . . . . . 2 . . . 1 . . . . . 2 4 1 3 . . . 1 Hackware 13 | . . . . . . . . 1 1 . . . 1 1 1 1 . . 1 2 . . . . 2 2 . . . . Protection 49 | . . . 4 . 1 . 2 2 1 2 1 1 1 . 3 1 7 2 . 3 . . 4 1 1 7 . 3 1 1 Artifact 4 | . . . . . . . . . . . . . . . . . . . . . . . . . . . 3 . . 1 Weapon 296 | 2 12 2 8 2 12 2 5 5 4 11 12 2 30 5 5 13 9 3 . 3 16 6 20 13 16 16 16 16 11 19 Energy Gun 20 | 1 5 . 1 . 1 . 2 . 1 2 1 . . . . . . 1 . . . . . . 3 2 . . . . Energy Cannon 131 | . . . 1 . 1 . 2 3 2 3 1 . 4 3 1 6 3 . . 1 11 3 18 11 7 7 12 13 8 10 Ballistic Gun 48 | 1 1 . 2 1 8 1 1 . 1 3 5 . 3 1 2 2 . 2 . 2 2 2 . . 1 1 . . 2 4 Ballistic Cannon 39 | . 6 1 3 . . . . . . . . 2 16 . 2 3 3 . . . . . . . . . 1 . . 2 Launcher 34 | . . 1 1 1 2 1 . 2 . 2 . . 7 . . 1 . . . . 2 . . 2 1 4 2 2 1 2 Special Weapon 21 | . . . . . . . . . . 1 5 . . 1 . 1 3 . . . 1 1 2 . 4 2 . . . . Impact Weapon . | . . . . . . . . . . . . . . . . . . . . . . . . . . . . . . . Slashing Weapon 3 | . . . . . . . . . . . . . . . . . . . . . . . . . . . 1 1 . 1 Piercing Weapon . | . . . . . . . . . . . . . . . . . . . . . . . . . . . . . . . Special Melee Weapon . | . . . . . . . . . . . . . . . . . . . . . . . . . . . . . . . Unidentified Prototypes 63 | . . 1 . . 11 . 2 . 1 2 . . 3 1 . 3 . 3 1 . 1 3 2 2 12 1 7 3 . 4 Corrupted Parts 9 | . . . . . . . . . . . . . . . . . . 1 . . . . 1 . . . . 5 . 2 System Corruption 49 | . . . . . . . . . . . . . . . . . . 2 . . . . 8 . . . . 27 . 12 Parts Lost 57 | . . . 2 1 3 . 1 4 1 . 2 . 10 . . . . . . . 1 . 1 . 6 11 1 7 1 5 Power 10 | . . . . . 1 . . . 1 . . . 1 . . . . . . . 1 . . . 1 . 1 2 . 2 Propulsion 9 | . . . . . 1 . . 1 . . . . 3 . . . . . . . . . . . . 1 . 2 1 . Utility 30 | . . . 2 1 1 . 1 3 . . 1 . 4 . . . . . . . . . 1 . 4 8 . 3 . 1 Weapon 8 | . . . . . . . . . . . 1 . 2 . . . . . . . . . . . 1 2 . . . 2 Highest Loss Streak 6 | . . . 1 1 1 . 1 2 1 . 2 . 4 . . . . . . . 1 . 1 . 2 6 1 3 1 4 To Critical Strikes . | . . . . . . . . . . . . . . . . . . . . . . . . . . . . . . . Average Slot Usage (%) 85 | . 99 100 98 99 99 100 98 98 99 93 64 61 66 87 75 65 85 87 86 75 89 88 88 82 80 83 82 78 80 77 Engine 3 | . 14 14 11 11 5 . 3 9 8 7 1 . . 5 2 . . . . . . . . . . . . . . . Core 1 | . . . . . 5 11 5 . . . . . . . . . . . . . . . 2 4 4 . . . . . Reactor 6 | . . . . . . . . . . . 5 7 5 5 7 10 11 11 10 11 10 10 7 4 3 11 13 12 15 12 Treads 18 | . 27 28 16 33 32 33 26 27 27 27 17 15 12 6 11 10 11 11 11 11 10 9 10 14 13 16 16 16 14 12 Leg 1 | . . . 15 . . . . . . . . . . . . . . . . . . . . . . . . . . . Device 15 | . 14 14 11 10 8 . 19 24 16 20 7 7 10 20 5 8 20 23 21 13 26 25 23 22 23 14 12 13 15 26 Storage 7 | . 14 14 11 11 13 22 14 9 9 7 7 7 6 5 5 5 5 5 5 5 5 5 5 4 4 4 4 4 4 4 Processor 4 | . . . . . . . . . . . . . 11 11 9 5 5 5 5 5 5 5 7 8 9 9 13 13 8 4 Hackware 2 | . . . . . . . . . 10 7 1 . . 6 6 2 . . . 1 5 5 5 . 3 6 8 8 5 . Protection 6 | . . . 9 11 11 11 9 9 9 7 6 7 3 . 3 5 10 11 11 6 10 10 10 6 1 4 . 3 4 3 Energy Cannon 5 | . . . 1 . . . 8 17 14 9 . . 1 7 5 5 9 6 5 4 11 8 11 9 9 7 5 1 5 7 Ballistic Gun 4 | . 3 . . 21 21 21 5 . . 3 8 . 1 3 5 . . 5 11 11 . 1 . . . . . . 2 2 Ballistic Cannon 4 | . 21 28 18 . . . . . . . . 14 9 3 . 5 4 . . . . . . . . . . . . 2 Naked Turns . | . . . . . . . . . . . . . . . . . . . . . . . . . . . . . . . Heaviest Build 242 | 14 54 57 103 101 124 118 122 112 109 127 151 153 156 141 177 192 186 160 162 186 171 170 189 184 182 203 225 218 235 242 Greatest Support 250 | 40 40 40 66 66 66 66 66 63 60 88 140 140 140 90 140 140 140 140 140 140 140 140 140 210 215 215 205 213 218 250 Greatest Overweight (x) 14 | . 1 1 2 1 3 1 1 1 1 1 1 1 1 14 1 1 1 1 1 1 1 2 1 . . . 1 1 1 1 Average Overweight (x) . | . . 1 . 1 1 1 1 1 1 1 . 1 . 1 . 1 1 1 1 1 1 1 1 . . . . . 1 . Largest Inventory Capacity 25 | 8 20 20 25 25 25 25 25 25 25 25 25 25 25 25 25 25 25 25 25 25 25 25 25 25 25 25 25 25 25 25 Average Capacity 24 | 7 19 20 21 25 23 25 25 25 25 25 25 25 25 25 25 25 25 25 25 25 25 25 25 25 25 25 25 25 25 25 Most Carried 25 | 6 20 20 25 25 25 24 25 25 25 25 25 25 25 25 25 25 25 25 25 25 25 25 25 25 25 25 25 25 25 25 Average Carried 23 | 3 17 19 20 25 22 24 24 24 24 24 24 24 24 24 24 24 23 24 24 24 24 24 24 24 24 22 24 24 23 23 Final Capacity 25 | 8 20 20 25 25 25 25 25 25 25 25 25 25 25 25 25 25 25 25 25 25 25 25 25 25 25 25 25 25 25 25 Final Carried 25 | 6 20 20 25 25 24 24 25 25 25 25 25 25 24 24 25 25 25 25 25 23 25 25 25 25 25 24 25 25 25 21 Class Distribution -------------------- 36% | Scavenger-Mutant 30% | Mutant 8% | Generator-Mutant 6% | Scavenger-Tank 5% | Hacker-Mutant 4% | Scavenger-Skirmisher Dominant Class ---------------- Mutant | -10/Materials Mutant | -10/Mines Mutant | -9/Materials Mutant | -9/Mines Mutant | -9/Exiles Mutant | -8/Mines Mutant | -8/Materials Mutant | -8/Garrison Scavenger-Mutant | -8/Materials Scavenger-Mutant | -7/Factory Scavenger-Mutant | -7/Waste Scavenger-Mutant | -7/Factory Scavenger-Mutant | -6/Factory Scavenger-Mutant | -5/Factory Scavenger-Mutant | -5/Waste Scavenger-Mutant | -5/Factory Scavenger-Tank | -5/Extension Scavenger-Tank | -5/Cetus Scavenger-Tank | -5/Archives Scavenger-Tank | -5/Hub_04(d) Scavenger-Mutant | -4/Factory Scavenger-Skirmisher | -4/Waste Scavenger-Mutant | -4/Factory Scavenger-Mutant | -3/Research Scavenger-Mutant | -3/Testing Hacker-Mutant | -2/Research Hacker-Mutant | -2/Quarantine Scavenger-Assassin | -2/Section 7 Generator-Assassin | -1/Access Generator-Mutant | -1/Command Resources | -11 -10 -10 -9 -9 -9 -8 -8 -8 -8 -7 -7 -7 -6 -5 -5 -5 -5 -5 -5 -5 -4 -4 -4 -3 -3 -2 -2 -2 -1 -1 ----------- Run | Jun Mat Min Mat Min Exi Min Mat Gar Mat Fac Was Fac Fac Fac Was Fac Ext Cet Arc Hub Fac Was Fac Res Tes Res Qua Sec Acc Com Matter Collected 20396 | 279 578 119 1099 176 1447 46 590 214 208 453 989 60 2502 132 473 1344 862 250 444 599 543 369 429 541 761 1696 916 514 838 925 Remotely 8395 | . . . . . . . . 74 . 207 455 . 1706 . 111 1075 733 113 414 309 489 . 39 187 149 997 591 15 366 365 Salvage Created 37596 | 161 881 19 1822 282 447 57 1395 799 801 712 1174 . 2467 132 1281 1514 642 496 557 1169 1263 1633 1172 1269 1227 3563 1873 2497 3950 2341 Parts 1735 | 9 43 4 122 24 64 11 67 38 34 43 37 . 100 13 20 67 28 21 28 60 54 30 42 53 67 157 107 114 165 113 Haulers Intercepted 22 | . 2 . 5 . . . 3 . 2 1 . . 2 . . 3 . . . 1 1 . 1 1 . . . . . . Recyclers Shooed 20 | . 3 . 1 1 . . 1 . . 2 . . . 1 . 5 . . . . . . 1 . 1 3 1 . . . Parts Field Recycled . | . . . . . . . . . . . . . . . . . . . . . . . . . . . . . . . Retrieved Matter . | . . . . . . . . . . . . . . . . . . . . . . . . . . . . . . . Parts Self-Destructed . | . . . . . . . . . . . . . . . . . . . . . . . . . . . . . . . Prevented . | . . . . . . . . . . . . . . . . . . . . . . . . . . . . . . . Kills | -11 -10 -10 -9 -9 -9 -8 -8 -8 -8 -7 -7 -7 -6 -5 -5 -5 -5 -5 -5 -5 -4 -4 -4 -3 -3 -2 -2 -2 -1 -1 ------- Run | Jun Mat Min Mat Min Exi Min Mat Gar Mat Fac Was Fac Fac Fac Was Fac Ext Cet Arc Hub Fac Was Fac Res Tes Res Qua Sec Acc Com Combat Hostiles Destroyed 518 | . 21 3 41 11 5 6 21 20 9 12 4 . 55 2 5 19 10 9 3 19 21 6 11 17 16 43 29 30 38 32 Melee 10 | . . . . . . . . . . . . . . . . . . . . . . . 1 . . . 2 7 . . Guns 91 | . 4 . 8 8 1 3 9 . 2 3 4 . 3 . 1 2 . 4 3 11 . . . . . 3 1 . 16 5 Cannons 262 | . 17 1 30 . . . 9 13 7 5 . . 38 2 3 13 10 5 . 8 7 5 7 8 15 15 17 6 11 10 AOE 86 | . . 2 3 3 4 3 . 4 . 4 . . 14 . . 3 . . . . 9 . . 2 . 12 6 8 4 5 Classes Destroyed 27 | 2 5 . 5 . 3 . 1 3 . 1 1 . 2 . . . 1 . . 1 . . 1 . . 1 . . . . Worker 19 | . . . 6 1 . . . . 1 2 . . . . . . 1 . . . . . 1 1 . 3 1 1 1 . Builder 26 | . . . 1 3 . . . . 1 . . . 3 . . . 2 . . 1 1 . 2 2 2 3 . 3 2 . Tunneler 5 | 3 . . . 1 . . . . . . . . . . . . . . . . . . . . . 1 . . . . Hauler 22 | . 2 . 5 . . . 3 . 2 1 . . 2 . . 3 . . . 1 1 . 1 1 . . . . . . Recycler 36 | 1 3 . 4 1 . . 2 . 1 1 . . 1 . . 3 . . . . 1 . 1 . 1 5 . 2 8 1 Carrier 1 | . . . . . . . . . . . . . 1 . . . . . . . . . . . . . . . . . Mechanic 6 | . . . 1 . . . . . . . . . 2 . . 1 . . . . . . . . . 1 1 . . . Operator 21 | . 3 . 2 . . . 1 . . . . . 1 1 . 1 . . 9 1 . . . 1 . . . . . 1 Turret 1 | . . . . . 1 . . . . . . . . . . . . . . . . . . . . . . . . . Watcher 35 | . 3 . 4 . . . 2 1 3 3 . . 1 . . 2 . . . 1 1 . 1 1 1 5 2 1 2 1 Swarmer 100 | . 3 3 8 11 . 6 . 3 . 4 . . 6 . . 4 . 2 . 4 5 . . 4 4 9 9 4 5 6 Cutter 2 | . . . . . . . . . . . . . . . . . . . . 2 . . . . . . . . . . Saboteur 1 | . . . . . . . . . . . . . . . . . . . . . . . 1 . . . . . . . Grunt 168 | . 18 . 22 . . . 12 6 5 3 . . 28 . . 6 3 2 . 5 9 . 2 5 2 10 . 13 12 5 Brawler 11 | . . . . . . . . 1 . . . . 4 . . . . . . . . . 2 . . 2 . 1 . 1 Duelist 11 | . . . 1 . . . . 1 1 . . . 2 . . . . . . . . . 1 1 . . . . 2 2 Protector 4 | . . . . . . . . . . . . . 1 . . . . . . . 1 . . . . . . . . 2 Sentry 56 | . . . 10 . . . 7 3 2 . . . 8 . . 4 3 . 3 3 2 . 1 1 . 1 . 3 3 2 Demolisher 1 | . . . . . . . . 1 . . . . . . . . . . . . . . . . . . . . . . Specialist 8 | . . . . . . . . . . 2 . . . . . . . . . 2 . . . . 2 . . . 2 . Hunter 35 | . . . . . . . 2 . 1 . . . 2 . . . 1 1 . 1 2 . . 4 . 8 5 3 5 . Programmer 88 | . . . . . . . . 5 . 3 . . 4 2 . 5 1 . . 2 2 . 4 2 8 12 15 5 9 9 Heavy 1 | . . . . . . . . . . . . . . . . . . . . . . . . . . 1 . . . . Behemoth 2 | . . . . . . . . . . . . . . . . . 2 . . . . . . . . . . . . . Compactor 15 | . . . . . . . . . . . 4 . . . 5 . . . . . . 6 . . . . . . . . Cetus Guard 4 | . . . . . . . . . . . . . . . . . . 4 . . . . . . . . . . . . S7 Guard 1 | . . . . . . . . . . . . . . . . . . . . . . . . . . . . 1 . . M Guard 2 | . . . . . . . . . . . . . . . . . . . . . . . . . . . . . . 2 Combat Programmer 2 | . . . . . . . . . . . . . . . . . . . . . . . . . . . . . . 2 Zionite 7 | . . . . . 7 . . . . . . . . . . . . . . . . . . . . . . . . . Assembled 4 | . . . . . 4 . . . . . . . . . . . . . . . . . . . . . . . . . Surgeon 2 | . . . . . . . . . . . . . . . . . . . . . . . 2 . . . . . . . Best Kill Streak 20 | 4 4 3 11 9 4 3 3 7 3 4 1 . 9 2 1 4 3 3 9 9 8 1 6 4 4 20 5 8 17 10 Combat Bots Only 13 | . 3 3 8 7 4 3 2 7 2 4 1 . 7 2 1 4 3 3 3 8 7 1 5 4 4 13 5 7 10 10 Max Kills in Single Turn 9 | 1 2 2 3 3 1 3 1 2 2 2 1 . 9 1 1 3 2 1 1 2 6 1 1 2 1 4 4 4 4 5 Gunslinging . | . . . . . . . . . . . . . . . . . . . . . . . . . . . . . . . Exploded 5 | . . 2 2 3 1 3 . 2 . 2 . . 5 . . 3 . . . . 5 . . 1 . 3 4 3 2 5 Melee 1 | . . . . . . . . . . . . . . . . . . . . . . . 1 . . . 1 1 . . Uniques/NPCs Destroyed 6 | . . . . . 4 . . . . . . . . . . . . . . . . . . . . . . . . 2 8R-AWN (-9/Exiles) EX-DEC (-9/Exiles) EX-HEX (-9/Exiles) EX-BIN (-9/Exiles) MAIN.C Shell (-1/Command) MAIN.C (-1/Command) Combat | -11 -10 -10 -9 -9 -9 -8 -8 -8 -8 -7 -7 -7 -6 -5 -5 -5 -5 -5 -5 -5 -4 -4 -4 -3 -3 -2 -2 -2 -1 -1 -------- Run | Jun Mat Min Mat Min Exi Min Mat Gar Mat Fac Was Fac Fac Fac Was Fac Ext Cet Arc Hub Fac Was Fac Res Tes Res Qua Sec Acc Com Damage Taken 38171 | . 387 111 1294 191 726 94 1306 1004 401 774 408 11 5385 61 . 954 683 189 335 1414 945 . 1028 783 1421 5191 3516 3138 1999 4422 Core 2942 | . 86 15 165 18 112 . 180 159 15 76 33 . 266 . . 35 . 29 . 13 127 . 43 42 11 178 756 218 146 219 Absorbed by Shields 14234 | . . . . . . . 96 96 . 76 . . . 22 . 189 78 129 63 304 361 . 198 492 822 671 2554 2366 1783 3934 Reduced by Siege Mode 1402 | . . . . . . . . . . . . . 307 . . 50 31 24 11 25 50 . 96 44 82 94 137 69 62 320 Redirected to Core 632 | . . . . . . . . . . . . . . . . . . . . . . . . . . . 632 . . . Regen/Repaired (Parts) 6448 | . 79 . 128 . . . 113 . . . 24 11 . . . 247 . . . . . 83 27 . 385 1053 1008 1106 1112 1072 Core Remaining (%) 67 | 100 . 59 . . . 26 . . 35 . . 84 68 . . . . . . 92 . . 85 . 95 . . 16 . 77 Volleys Fired 2122 | 9 85 3 133 22 81 8 107 56 57 60 60 . 175 16 54 102 33 14 34 36 46 64 40 53 92 188 100 81 127 186 Largest 3 | 2 2 2 2 2 2 2 2 2 2 2 2 . 2 3 2 3 3 3 3 3 3 3 3 2 3 3 2 1 1 3 Hottest 289 | 60 112 78 99 46 60 46 136 136 143 143 60 . 129 203 188 180 177 223 105 105 175 175 250 182 214 289 240 120 130 264 Shots Fired 3482 | 18 170 5 264 42 154 14 214 101 104 110 105 . 332 22 100 149 93 36 99 101 84 136 84 83 122 206 115 81 129 209 Gun 1020 | 18 64 . 44 40 148 12 120 . 24 41 101 . 39 6 43 14 . 12 67 71 7 27 . . . 27 10 . 51 34 Cannon 2375 | . 106 4 218 . . . 94 97 80 64 . . 285 15 52 134 90 24 32 30 72 106 84 77 121 166 103 74 75 172 Launcher 61 | . . 1 2 2 6 2 . 4 . 4 . . 8 . . 1 . . . . 5 . . 2 . 9 2 7 3 3 Special 26 | . . . . . . . . . . 1 4 . . 1 5 . 3 . . . . 3 . 4 1 4 . . . . Kinetic 1519 | 9 133 4 211 40 148 12 78 . 13 41 101 . 296 6 43 68 28 9 67 71 7 27 . . . 8 . . 51 48 Thermal 1467 | . 17 . 51 . . . 136 97 82 64 . . 28 15 52 80 62 27 32 30 35 106 51 45 103 120 73 32 34 95 Explosive 61 | . . 1 2 2 6 2 . 4 . 4 . . 8 . . 1 . . . . 5 . . 2 . 9 2 7 3 3 Electromagnetic 409 | 9 20 . . . . . . . 9 . . . . . . . . . . . 37 . 33 32 18 65 40 42 41 63 Robot Hit Streak 48 | 5 9 1 16 6 6 3 19 10 16 13 15 . 29 11 12 19 32 18 12 17 15 48 16 10 17 28 19 17 33 28 Robot Miss Streak 8 | 2 5 2 5 3 4 2 8 2 4 7 2 . 4 2 3 2 3 1 4 2 3 2 2 2 3 3 4 2 4 3 Penetration Max 1 | . . . . . 1 . . . . . . . 1 . . 1 . . 1 1 . . . . . 1 . . 1 1 Secondary Targets 4 | . . . . 3 . . . . . . . . . . 1 . . . . . . . . . . . . . . . Max Gunslinging Chain 1 | . . . . 1 . . . . . . . . . . 1 . . . . . . . . . . . . . . . Capacitor 384 | . . . . . . . . . . . . . . . . . . . . . . . . . 61 94 . . 75 154 Shots Hit Robots 2312 | 10 101 1 163 23 81 5 138 50 70 65 75 . 238 13 69 96 63 27 58 63 50 103 63 52 68 131 81 81 103 171 Core Hits 1189 | 4 36 1 77 18 33 6 50 32 27 31 8 . 191 4 16 48 27 18 25 33 68 17 25 41 32 86 38 46 83 68 Critical Kills 71 | . 1 . . . 6 . 2 2 . . 4 . . . 1 2 . 1 . 8 1 1 . 2 . 7 1 1 24 7 Critical Parts Destroyed 71 | 1 . . . 1 9 . 2 . . . 5 . 4 . . 1 . . 3 6 . 1 . . . 6 . . 31 1 Critical Strikes 230 | 1 9 . 8 1 16 . 7 2 . . 41 . 15 . 5 8 . 1 4 14 1 6 1 2 . 14 3 5 57 9 Burn 8 | . 4 . 1 . . . 3 . . . . . . . . . . . . . . . . . . . . . . . Meltdown 18 | . . . . . . . 2 2 . . . . . . 1 2 . . . . . 1 . 2 . 3 1 1 1 2 Destroy 166 | 1 1 . . 1 16 . 2 . . . 41 . 4 . 4 1 . 1 4 14 1 5 . . . 10 . . 54 6 Blast 28 | . 4 . 7 . . . . . . . . . 11 . . 5 . . . . . . . . . . . . . 1 Corrupt 4 | . . . . . . . . . . . . . . . . . . . . . . . 1 . . 1 . . 2 . Sever 6 | . . . . . . . . . . . . . . . . . . . . . . . . . . . 2 4 . . Melee Attacks 86 | . . . . . . . . . . . . . . . . . . . . . . . . . . . 23 40 13 10 Impact . | . . . . . . . . . . . . . . . . . . . . . . . . . . . . . . . Slashing 86 | . . . . . . . . . . . . . . . . . . . . . . . . . . . 23 40 13 10 Piercing . | . . . . . . . . . . . . . . . . . . . . . . . . . . . . . . . Sneak Attacks 5 | . . . . . . . . . . . . . . . . . . . . . . . . . . . . 1 2 2 Combat Hostiles . | . . . . . . . . . . . . . . . . . . . . . . . . . . . . . . . Follow-up Attacks . | . . . . . . . . . . . . . . . . . . . . . . . . . . . . . . . Damage Inflicted 86988 | 120 1971 178 3705 493 1803 282 2563 1584 1571 1773 1508 1 7767 379 2071 4111 2515 925 1839 2158 3427 3497 2647 2563 2915 8154 4801 5618 4472 9577 Guns 13856 | 120 440 . 588 348 1523 76 1272 . 337 575 1508 . 517 144 617 199 . 201 1162 1288 111 733 . . . 362 230 . 681 824 Cannons 55376 | . 1531 20 2808 . . . 1287 1195 1234 959 . . 5393 235 1454 3754 2080 724 677 870 1690 2764 2530 2018 2846 4817 2764 1951 2488 7287 Explosions 13789 | . . 158 309 145 280 206 . 389 . 239 . . 1857 . . 158 435 . . . 1624 . 117 545 69 2955 692 1712 1004 895 Melee 3940 | . . . . . . . . . . . . . . . . . . . . . . . . . . . 1115 1955 299 571 Ramming 27 | . . . . . . . 4 . . . . 1 . . . . . . . . 2 . . . . 20 . . . . Kinetic 23456 | 24 1637 20 2668 348 1523 76 709 . 153 575 1508 . 5184 144 617 2199 425 121 1162 1288 111 733 . . . 99 . . 681 1451 Thermal 36010 | . 191 . 728 . . . 1850 1195 1158 959 . . 726 235 1454 1754 2090 804 677 870 805 2764 1583 981 2513 3543 2037 574 1047 5472 Explosive 12956 | . . 158 309 145 280 206 . 389 . 239 . . 1857 . . 158 . . . . 1540 . 117 545 . 2844 692 1712 1004 761 Electromagnetic 10599 | 96 143 . . . . . . . 260 . . . . . . . . . . . 969 . 947 1037 402 1648 957 1377 1441 1322 Impact . | . . . . . . . . . . . . . . . . . . . . . . . . . . . . . . . Slashing 3940 | . . . . . . . . . . . . . . . . . . . . . . . . . . . 1115 1955 299 571 Piercing . | . . . . . . . . . . . . . . . . . . . . . . . . . . . . . . . Highest Corruption 45 | . . . . . . . . 2 4 3 3 . 2 1 17 17 17 19 19 8 1 1 15 3 20 24 45 43 9 42 Average Corruption 11 | . . . . . . . . 1 3 1 2 . 1 1 15 17 17 17 11 7 1 1 6 2 14 14 27 19 5 21 Corruption Purged 57 | . . . . . . . . . . . 3 . . . . . . . 12 . . . . . . . . . . 42 Corruption Blocked . | . . . . . . . . . . . . . . . . . . . . . . . . . . . . . . . Effects 847 | . . . . . . . . 11 28 11 18 . 13 2 28 101 78 24 34 25 . 8 36 10 80 72 107 44 39 78 Message Errors 194 | . . . . . . . . 3 8 4 7 . 2 1 8 22 17 5 7 4 . . 4 2 21 10 28 13 13 15 Matter Fused 186 | . . . . . . . . . 7 . 3 . 5 . 8 28 16 6 7 8 . . 15 2 19 14 26 6 6 10 Heat Flow Errors 80 | . . . . . . . . 2 2 2 3 . 2 . 4 6 9 3 . 2 . 2 6 4 6 9 5 4 4 5 Energy Discharges 102 | . . . . . . . . 1 3 . 2 . . . 1 13 10 7 4 4 . . 4 . 10 6 15 7 4 11 Parts Rejected 11 | . . . . . . . . . . . . . . . . . 3 . . . . . . . . 3 1 . . 4 Parts Fused 7 | . . . . . . . . . . 1 . . . . . . 1 1 1 . . . . . . . . 1 . 2 Data Loss (minor) 88 | . . . . . . . . 2 4 1 2 . 2 1 2 12 6 2 2 1 . 3 3 1 10 11 7 6 5 5 Data Loss (major) 45 | . . . . . . . . 2 . 1 1 . . . 1 4 4 . 2 1 . . 3 . 4 5 2 4 4 7 Misfires 48 | . . . . . . . . . 2 1 . . . . 2 6 9 . 4 3 . 2 1 . 4 3 5 1 2 3 Alerts 18 | . . . . . . . . . . . . . 2 . . 2 1 . . 1 . 1 . 1 2 2 4 1 1 . Misdirections 4 | . . . . . . . . . . . . . . . . . . . . . . . . . 2 1 1 . . . Weapon Failures 64 | . . . . . . . . 1 2 1 . . . . 2 8 2 . 7 1 . . . . 2 8 13 1 . 16 Overload Shots 3 | . . . . . . . . . . . . . . . . 1 . . . . . . . . 2 . . . . . Effects 1 | . . . . . . . . . . . . . . . . . . . . . . . . . 1 . . . . . Energy Bleed 1 | . . . . . . . . . . . . . . . . . . . . . . . . . 1 . . . . . Overflow Damage 2940 | . 21 60 54 10 6 . 11 59 23 71 . . 84 2 . 271 45 . 57 . 34 . 100 67 82 361 217 559 439 307 Projectiles 1668 | . 21 10 54 . . . 11 59 23 48 . . 62 2 . 271 28 . 57 . 28 . 100 67 82 256 125 40 130 194 Explosions 465 | . . 50 . 10 6 . . . . 23 . . 22 . . . 17 . . . 6 . . . . 105 19 109 80 18 Melee 807 | . . . . . . . . . . . . . . . . . . . . . . . . . . . 73 410 229 95 Knockbacks 94 | . 14 . 27 . . . . . . . . . 43 . . 9 . . . . . . . . . . . . . 1 Impact . | . . . . . . . . . . . . . . . . . . . . . . . . . . . . . . . Kinetic 81 | . 12 . 21 . . . . . . . . . 38 . . 9 . . . . . . . . . . . . . 1 Secondary 13 | . 2 . 6 . . . . . . . . . 5 . . . . . . . . . . . . . . . . . Self-Inflicted Damage 607 | . . 6 . 12 32 . . . . . . . 9 . . . . . . . 82 . . 39 . 170 35 142 . 80 Shots 14 | . . 1 . 1 1 . . . . . . . 1 . . . . . . . 2 . . 2 . 2 1 2 . 1 Rammed 4 | . . . . . . . 1 . . . . 1 . . . . . . . . 1 . . . . 1 . . . . Targets Rammed 4 | . . . . . . . 1 . . . . 1 . . . . . . . . 1 . . . . 1 . . . . Kicked . | . . . . . . . . . . . . . . . . . . . . . . . . . . . . . . . Crushed . | . . . . . . . . . . . . . . . . . . . . . . . . . . . . . . . Highest Temperature 439 | 40 195 . 42 . 168 18 141 241 309 270 268 . 153 214 324 314 208 226 . 247 75 439 221 203 215 428 229 319 312 299 Average Temperature 70 | 24 45 . 12 . 39 7 53 58 77 74 45 . 25 80 154 76 50 58 . 38 18 83 52 48 74 96 53 62 97 84 Received Heat Transfer 5016 | . 204 18 459 . . . 576 185 147 129 . . 1449 . . 266 230 4 12 114 285 . 114 34 9 166 40 281 123 171 Effects 13 | . . . . . . . . 1 . 1 . . . . 4 1 . . . . . 2 . . . 4 . . . . Shutdowns 3 | . . . . . . . . . . . . . . . 1 . . . . . . 2 . . . . . . . . Energy Bleed 4 | . . . . . . . . 1 . . . . . . 2 1 . . . . . . . . . . . . . . Interference 6 | . . . . . . . . . . 1 . . . . 1 . . . . . . . . . . 4 . . . . Siege Activations 88 | . . . . . . . . . . . . . 12 1 . 7 2 2 2 6 4 1 5 5 8 9 6 3 8 7 Total Turns 1905 | . . . . . . . . . . . . . 410 12 . 101 53 22 59 68 56 151 76 51 86 156 157 50 167 230 Longest Duration 151 | . . . . . . . . . . . . . 98 12 . 24 29 13 55 25 26 151 38 21 21 76 31 29 85 78 Robots Corrupted 53 | . . . . . . . . . . . . . . . . . . . . . 5 . 4 6 1 9 2 9 7 10 Combat Hostiles 50 | . . . . . . . . . . . . . . . . . . . . . 5 . 3 6 1 9 2 8 6 10 Parts Fried 99 | . . . . . . . . . 3 . . . . . . . . . . . 5 . 5 11 5 15 8 13 12 22 Impact Corruptions . | . . . . . . . . . . . . . . . . . . . . . . . . . . . . . . . Robots Melted 24 | . 1 . . . . . 3 3 . . . . . . 1 3 . . . . . 1 1 2 . 4 1 1 1 2 Combat Hostiles 19 | . . . . . . . 3 3 . . . . . . 1 1 . . . . . 1 . 1 . 4 1 1 1 2 Parts Melted 99 | . 3 . 2 . . . 9 12 2 . . . 4 . . 9 5 2 2 2 4 . 4 6 5 10 9 4 2 3 Heat Transferred 38792 | . 814 . 1554 . . . 3663 1877 1998 1443 . . 814 274 1825 2548 2601 1146 1050 1300 868 3145 1554 962 2246 2751 1443 444 740 1732 Parts Sabotaged 4 | . . . . . . . . . . . . . . . . . . . . . . . 3 . . 1 . . . . Parts Stolen . | . . . . . . . . . . . . . . . . . . . . . . . . . . . . . . . Parts Stripped . | . . . . . . . . . . . . . . . . . . . . . . . . . . . . . . . Power Chain Reactions 4 | . . . . . . . . . . . . . . . . . . . . . 1 . . . 1 1 . . . 1 Missiles Intercepted 16 | . . . . . . . . . . . . . . . . . . . . . . . . . . . . . . 16 Alert | -11 -10 -10 -9 -9 -9 -8 -8 -8 -8 -7 -7 -7 -6 -5 -5 -5 -5 -5 -5 -5 -4 -4 -4 -3 -3 -2 -2 -2 -1 -1 ------- Run | Jun Mat Min Mat Min Exi Min Mat Gar Mat Fac Was Fac Fac Fac Was Fac Ext Cet Arc Hub Fac Was Fac Res Tes Res Qua Sec Acc Com Peak Influence 1299 | 20 211 187 937 450 . 190 442 1102 536 164 30 1010 1299 687 16 343 267 512 378 511 979 296 643 463 360 801 542 699 1277 1244 Initial 816 | . 13 47 26 365 . . 74 231 536 72 28 . 494 636 . . 168 51 204 63 249 290 . 304 260 161 225 247 407 816 Average 339 | 8 123 55 422 366 . 44 236 703 332 61 9 272 672 184 7 187 139 311 270 242 662 107 396 269 220 471 369 386 808 959 Maximum Alert Level 4 | . 1 . 3 2 . . 2 4 2 . . 3 4 2 . 1 1 2 1 2 3 1 2 2 1 3 2 2 4 4 Low Security (%) 37 | 100 95 100 31 . . 100 41 . 16 100 100 62 4 69 100 47 86 43 42 44 . 72 20 24 42 3 5 3 . . Level 1 23 | . 4 . 14 86 . . 57 9 58 . . 15 33 9 . 52 13 33 57 33 19 27 17 53 57 36 38 51 . . Level 2 16 | . . . 27 13 . . 1 48 24 . . 1 16 21 . . . 23 . 22 14 . 62 22 . 52 56 45 44 . Level 3 10 | . . . 26 . . . . 34 . . . 21 30 . . . . . . . 66 . . . . 6 . . 36 12 Level 4 11 | . . . . . . . . 8 . . . . 15 . . . . . . . . . . . . . . . 18 87 Level 5 . | . . . . . . . . . . . . . . . . . . . . . . . . . . . . . . . High Security . | . . . . . . . . . . . . . . . . . . . . . . . . . . . . . . . Max Security . | . . . . . . . . . . . . . . . . . . . . . . . . . . . . . . . Squads Dispatched 126 | . 7 . 6 . . . 8 . 2 3 . 8 20 2 . 6 2 . . 7 8 . 7 1 4 9 5 7 10 4 Investigation 18 | . 5 . 2 . . . 3 . 1 . . 1 1 . . 1 . . . 2 1 . . . . . . 1 . . Extermination 39 | . . . . . . . . . . 2 . 2 3 2 . 3 . . . 1 1 . 4 1 3 5 5 3 2 2 Reinforcement 35 | . 2 . 2 . . . 1 . 1 1 . 3 4 . . 2 2 . . 3 2 . 2 . 1 3 . 3 3 . Assault 18 | . . . 2 . . . . . . . . . 5 . . . . . . . 3 . 1 . . 1 . . 4 2 Garrison 16 | . . . . . . . 4 . . . . 2 7 . . . . . . 1 1 . . . . . . . 1 . Intercept . | . . . . . . . . . . . . . . . . . . . . . . . . . . . . . . . Searches Triggered . | . . . . . . . . . . . . . . . . . . . . . . . . . . . . . . . Construction Impeded 7 | . . . . . . . . . . . . . 1 . . 1 1 . . . . . 1 . . 1 . . 2 . Haulers Reinforced 3 | . . . . . . . . . . . . . 1 . . . . . . . 1 . . . . . . 1 . . Active Scanning Responses . | . . . . . . . . . . . . . . . . . . . . . . . . . . . . . . . Cargo Convoy Interrupts 1 | . . . . . . . . . . 1 . . . . . . . . . . . . . . . . . . . . Stealth | -11 -10 -10 -9 -9 -9 -8 -8 -8 -8 -7 -7 -7 -6 -5 -5 -5 -5 -5 -5 -5 -4 -4 -4 -3 -3 -2 -2 -2 -1 -1 --------- Run | Jun Mat Min Mat Min Exi Min Mat Gar Mat Fac Was Fac Fac Fac Was Fac Ext Cet Arc Hub Fac Was Fac Res Tes Res Qua Sec Acc Com Distress Signals 63 | . 1 . 2 1 . . 3 . 2 . . . 5 . . 1 1 2 . . . . 5 1 1 2 4 7 . 25 Communications Jammed 93 | . . . . . . . . . . . . . . . . . . . . . . . 69 7 . 17 . . . . Distress Signals 87 | . . . . . . . . . . . . . . . . . . . . . . . 69 6 . 12 . . . . Times Spotted 852 | . 32 10 60 11 31 8 37 25 23 21 7 19 88 5 6 28 16 20 19 21 22 6 23 24 25 63 46 47 57 52 Peak Tracking Total 11 | . 3 3 5 4 11 3 5 6 3 4 1 3 9 2 2 4 3 10 2 8 5 1 6 5 4 11 6 8 7 10 Tactical Retreats 55 | . . . 1 . 19 1 . 2 1 . 1 1 6 . . . 1 . . 1 . 1 3 2 1 3 4 1 4 2 Traps | -11 -10 -10 -9 -9 -9 -8 -8 -8 -8 -7 -7 -7 -6 -5 -5 -5 -5 -5 -5 -5 -4 -4 -4 -3 -3 -2 -2 -2 -1 -1 ------- Run | Jun Mat Min Mat Min Exi Min Mat Gar Mat Fac Was Fac Fac Fac Was Fac Ext Cet Arc Hub Fac Was Fac Res Tes Res Qua Sec Acc Com Traps Triggered 28 | . 1 . . . . . . 6 2 1 . 1 1 1 . 4 5 . . 1 1 . . . 1 . 1 1 1 . Indirectly . | . . . . . . . . . . . . . . . . . . . . . . . . . . . . . . . Trap Hack Attempts . | . . . . . . . . . . . . . . . . . . . . . . . . . . . . . . . Triggered . | . . . . . . . . . . . . . . . . . . . . . . . . . . . . . . . Disarmed . | . . . . . . . . . . . . . . . . . . . . . . . . . . . . . . . Reprogrammed . | . . . . . . . . . . . . . . . . . . . . . . . . . . . . . . . Reused . | . . . . . . . . . . . . . . . . . . . . . . . . . . . . . . . Traps Extracted . | . . . . . . . . . . . . . . . . . . . . . . . . . . . . . . . Installed . | . . . . . . . . . . . . . . . . . . . . . . . . . . . . . . . Triggered 1 | . . . . . . . . . . 1 . . . . . . . . . . . . . . . . . . . . Exploded 3 | . . . . . 3 . . . . . . . . . . . . . . . . . . . . . . . . . Machines | -11 -10 -10 -9 -9 -9 -8 -8 -8 -8 -7 -7 -7 -6 -5 -5 -5 -5 -5 -5 -5 -4 -4 -4 -3 -3 -2 -2 -2 -1 -1 ---------- Run | Jun Mat Min Mat Min Exi Min Mat Gar Mat Fac Was Fac Fac Fac Was Fac Ext Cet Arc Hub Fac Was Fac Res Tes Res Qua Sec Acc Com Machines Disabled 96 | . 3 . 5 . 15 . 2 3 1 2 . 5 2 1 . 4 2 3 4 5 5 . 4 1 9 1 8 4 1 6 Max in Single Turn 3 | . 1 . 1 . 3 . 1 1 1 1 . . 1 1 . 2 2 . 1 1 1 . 2 1 1 1 1 1 1 2 Garrison Access 12 | . . . . . . . . . 1 1 . 2 2 1 . . . . . 1 1 . . 1 . 1 . . 1 . Garrison Relay 4 | . . . . . . . . 4 . . . . . . . . . . . . . . . . . . . . . . Network Hub 1 | . . . . . . . . . . . . . . . . . . . . 1 . . . . . . . . . . Energy Cycler 2 | . . . . . . . . . . . . . . . . . 2 . . . . . . . . . . . . . Machines Repaired 1 | . . . . . . . . . . . . . . . . . . . . 1 . . . . . . . . . . Machines Sabotaged . | . . . . . . . . . . . . . . . . . . . . . . . . . . . . . . . Overloaded Fab Kills . | . . . . . . . . . . . . . . . . . . . . . . . . . . . . . . . Hacking | -11 -10 -10 -9 -9 -9 -8 -8 -8 -8 -7 -7 -7 -6 -5 -5 -5 -5 -5 -5 -5 -4 -4 -4 -3 -3 -2 -2 -2 -1 -1 --------- Run | Jun Mat Min Mat Min Exi Min Mat Gar Mat Fac Was Fac Fac Fac Was Fac Ext Cet Arc Hub Fac Was Fac Res Tes Res Qua Sec Acc Com Machines Accessed 135 | . 8 1 14 . 1 . 11 4 7 8 . 6 9 7 . 5 2 . . 8 2 . 6 4 8 9 7 4 3 1 Terminals 86 | . 5 . 8 . . . 7 4 4 4 . 2 5 3 . 3 2 . . 7 2 . 4 3 6 5 5 4 2 1 Fabricators 4 | . . . . . . . . . . 1 . 1 2 . . . . . . . . . . . . . . . . . Repair Stations 16 | . 1 . 2 . . . 2 . . . . 1 1 1 . 1 . . . . . . 2 . 2 1 2 . . . Recycling Units 11 | . 2 . 2 . . . . . 1 1 . . . 2 . 1 . . . . . . . . . 2 . . . . Scanalyzers 5 | . . . 2 . . . 1 . 1 1 . . . . . . . . . . . . . . . . . . . . Garrison Access 11 | . . . . . . . 1 . 1 1 . 2 1 1 . . . . . 1 . . . 1 . 1 . . 1 . Total Hacks 414 | . 29 1 51 . 23 . 27 5 25 21 . 13 13 15 . 12 3 . . 23 11 . 20 11 18 36 33 15 8 1 Successful 224 | . 19 1 34 . 23 . 10 3 12 10 . 10 6 8 . 5 1 . . 12 5 . 6 2 7 25 14 5 5 1 Failed 190 | . 10 . 17 . . . 17 2 13 11 . 3 7 7 . 7 2 . . 11 6 . 14 9 11 11 19 10 3 . Catastrophic 44 | . 2 . 2 . . . 4 1 3 . . 1 3 2 . 2 . . . 3 1 . 7 3 . 3 4 3 . . Database Lockouts . | . . . . . . . . . . . . . . . . . . . . . . . . . . . . . . . Manual 117 | . 10 . 17 . 1 . 16 . 7 5 . 2 2 2 . 4 . 1 . 10 4 . 7 2 5 . 12 9 1 . Terminals 250 | . 20 . 23 . . . 18 5 13 11 . 5 7 11 . 5 3 . . 21 11 . 12 10 14 14 26 15 5 1 Fabricators 7 | . . . . . . . . . . 2 . 3 2 . . . . . . . . . . . . . . . . . Repair Stations 58 | . 3 . 7 . . . 5 . . . . 2 3 1 . 5 . . . . . . 8 . 4 13 7 . . . Recycling Units 31 | . 6 . 8 . . . . . 3 3 . . . 2 . 2 . . . . . . . . . 7 . . . . Scanalyzers 27 | . . . 13 . . . 2 . 8 4 . . . . . . . . . . . . . . . . . . . . Garrison Access 17 | . . . . . . . 2 . 1 1 . 3 1 1 . . . . . 2 . . . 1 . 2 . . 3 . Terminal Hacks 118 | . 12 1 11 . 23 . 3 3 3 5 . 2 3 4 . 1 1 . . 7 4 . 3 1 4 9 9 4 4 1 Record 27 | . 2 . . . 23 . . . . 2 . . . . . . . . . . . . . . . . . . . . Part Schematic 4 | . 2 . . . . . . . . . . . . . . . . . . 1 . . . . . . 1 . . . Robot Analysis 2 | . 2 . . . . . . . . . . . . . . . . . . . . . . . . . . . . . Prototype ID Bank 5 | . 1 . 2 . . . . . . . . . . . . . . . . . 1 . . . . . . 1 . . Open Door 5 | . . 1 . . . . . 1 . . . . . . . . 1 . . . . . . . . . . . 1 1 Level Access Points 4 | . . . . . . . . . . . . . . . . . . . . 1 1 . . . . 1 . 1 . . Branch Access Points 12 | . . . 2 . . . 1 . . 1 . . 1 1 . 1 . . . . 1 . 1 1 . 1 . . 1 . Emergency Access Points 10 | . . . 1 . . . . 1 1 . . . . . . . . . . . . . 1 . 1 1 3 . 1 . Terminal Index 2 | . . . . . . . . . . . . . . . . . . . . 1 . . . . 1 . . . . . Alert Level 3 | . . . . . . . . . . . . 1 . . . . . . . 1 . . . . . 1 . . . . Unreport Threat 15 | . . . . . . . 1 . 2 . . . 1 3 . . . . . 1 . . . . 1 3 2 1 . . Locate Traps 15 | . 3 . 2 . . . . . . 1 . 1 1 . . . . . . 2 . . 1 . . 2 2 . . . Assault Status 1 | . . . 1 . . . . . . . . . . . . . . . . . . . . . . . . . . . Recall Reinforcements 1 | . . . . . . . . . . . . . . . . . . . . . . . . . 1 . . . . . Hauler Manifests 6 | . 1 . 2 . . . 1 . . . . . . . . . . . . . . . . . . . 1 1 . . Zone Layout 5 | . 1 . 1 . . . . . . 1 . . . . . . . . . . 1 . . . . . . . 1 . Garrison Registry 1 | . . . . . . . . 1 . . . . . . . . . . . . . . . . . . . . . . Fabricator Hacks 2 | . . . . . . . . . . 1 . 1 . . . . . . . . . . . . . . . . . . Network Status 1 | . . . . . . . . . . . . 1 . . . . . . . . . . . . . . . . . . Load Schematic 1 | . . . . . . . . . . 1 . . . . . . . . . . . . . . . . . . . . Repair Station Hacks 38 | . 3 . 5 . . . 3 . . . . 2 1 . . 4 . . . . . . 2 . 2 12 4 . . . Scan Component 22 | . 2 . 3 . . . 2 . . . . 1 1 . . 2 . . . . . . 2 . 1 6 2 . . . Repair 16 | . 1 . 2 . . . 1 . . . . 1 . . . 2 . . . . . . . . 1 6 2 . . . Recycling Unit Hacks 10 | . 2 . 3 . . . . . 1 1 . . . 1 . . . . . . . . . . . 2 . . . . Retrieve Matter 2 | . . . 1 . . . . . . . . . . . . . . . . . . . . . . 1 . . . . Retrieve Components 8 | . 2 . 2 . . . . . 1 1 . . . 1 . . . . . . . . . . . 1 . . . . Scanalyzer 21 | . . . 12 . . . 2 . 6 1 . . . . . . . . . . . . . . . . . . . . Insert Component 11 | . . . 6 . . . 1 . 3 1 . . . . . . . . . . . . . . . . . . . . Analyze 10 | . . . 6 . . . 1 . 3 . . . . . . . . . . . . . . . . . . . . . Garrison Access Hacks 14 | . . . . . . . 1 . 1 1 . 3 1 1 . . . . . 2 . . . 1 . 2 . . 1 . Unlock Access 1 | . . . . . . . 1 . . . . . . . . . . . . . . . . . . . . . . . Seal Access 10 | . . . . . . . . . 1 1 . 2 1 1 . . . . . 1 . . . 1 . 1 . . 1 . Coupler Status 3 | . . . . . . . . . . . . 1 . . . . . . . 1 . . . . . 1 . . . . Unauthorized Hacks 21 | . 2 . 3 . . . 1 . 1 1 . 2 1 2 . . . . . 3 1 . 1 . 1 . 1 1 . . Terminals 16 | . 1 . 1 . . . 1 . 1 1 . 1 . 2 . . . . . 3 1 . 1 . 1 . 1 1 . . Botnet 14 | . 1 . 1 . . . 1 . 1 1 . 1 . 2 . . . . . 1 1 . 1 . 1 . 1 1 . . Sabotage 2 | . . . . . . . . . . . . . . . . . . . . 2 . . . . . . . . . . Fabricators 2 | . . . . . . . . . . . . 1 1 . . . . . . . . . . . . . . . . . Haulers 2 | . . . . . . . . . . . . 1 1 . . . . . . . . . . . . . . . . . Repair Stations . | . . . . . . . . . . . . . . . . . . . . . . . . . . . . . . . Recycling Units 3 | . 1 . 2 . . . . . . . . . . . . . . . . . . . . . . . . . . . Reject 2 | . . . 2 . . . . . . . . . . . . . . . . . . . . . . . . . . . Tunnel 1 | . 1 . . . . . . . . . . . . . . . . . . . . . . . . . . . . . Scanalyzers . | . . . . . . . . . . . . . . . . . . . . . . . . . . . . . . . Garrison Access . | . . . . . . . . . . . . . . . . . . . . . . . . . . . . . . . Data Cores Recovered 2 | . . . . . . . 1 . . . . . . . . . . . . . . . . 1 . . . . . . Used . | . . . . . . . . . . . . . . . . . . . . . . . . . . . . . . . Hacking Detections 109 | . 8 . 11 . . . 10 3 6 7 . 5 7 4 . 5 1 . . 5 2 . 6 3 7 6 7 4 2 . Full Trace Events 12 | . 3 . 2 . . . 3 . . . . 1 1 . . . . . . . 1 . . . . . . 1 . . Feedback Events . | . . . . . . . . . . . . . . . . . . . . . . . . . . . . . . . Feedback Blocked . | . . . . . . . . . . . . . . . . . . . . . . . . . . . . . . . Robot Schematics Acquired . | . . . . . . . . . . . . . . . . . . . . . . . . . . . . . . . Robots Built . | . . . . . . . . . . . . . . . . . . . . . . . . . . . . . . . Authchips . | . . . . . . . . . . . . . . . . . . . . . . . . . . . . . . . Time . | . . . . . . . . . . . . . . . . . . . . . . . . . . . . . . . Total Robot Build Rating . | . . . . . . . . . . . . . . . . . . . . . . . . . . . . . . . Part Schematics Acquired 11 | . 2 . 5 . . . 1 . 1 . . . . . . . . . . 1 . . . . . . 1 . . . Parts Built . | . . . . . . . . . . . . . . . . . . . . . . . . . . . . . . . Authchips . | . . . . . . . . . . . . . . . . . . . . . . . . . . . . . . . Time . | . . . . . . . . . . . . . . . . . . . . . . . . . . . . . . . Total Part Build Rating . | . . . . . . . . . . . . . . . . . . . . . . . . . . . . . . . Parts Repaired 15 | . 1 . 2 . . . 1 . . . . 1 . . . 2 . . . . . . . . 1 5 2 . . . Time 840 | . 26 . 45 . . . 16 . . . . 136 . . . 118 . . . . . . . . 28 412 59 . . . Parts Recycled . | . . . . . . . . . . . . . . . . . . . . . . . . . . . . . . . Recycled Matter . | . . . . . . . . . . . . . . . . . . . . . . . . . . . . . . . Retrieved Matter 136 | . . . 136 . . . . . . . . . . . . . . . . . . . . . . . . . . . Retrieved Components 46 | . 12 . 19 . . . . . 9 . . . . 2 . . . . . . . . . . . 4 . . . . Parts Scanalyzed 8 | . . . 5 . . . 1 . 2 . . . . . . . . . . . . . . . . . . . . . Part Schematics Acquired 7 | . . . 5 . . . 1 . 1 . . . . . . . . . . . . . . . . . . . . . Parts Damaged 1 | . . . 1 . . . . . . . . . . . . . . . . . . . . . . . . . . . Bothacking | -11 -10 -10 -9 -9 -9 -8 -8 -8 -8 -7 -7 -7 -6 -5 -5 -5 -5 -5 -5 -5 -4 -4 -4 -3 -3 -2 -2 -2 -1 -1 ------------ Run | Jun Mat Min Mat Min Exi Min Mat Gar Mat Fac Was Fac Fac Fac Was Fac Ext Cet Arc Hub Fac Was Fac Res Tes Res Qua Sec Acc Com Used RIF Installer 2 | . . . . . . . . 2 . . . . . . . . . . . . . . . . . . . . . . Coupler Efficiency 1 | . . . . . . . . 1 . . . . . . . . . . . . . . . . . . . . . . Robots Hacked 17 | . . . . . . . . . . 1 4 . . 1 5 . 1 . . . . 3 . 1 . 1 . . . . Non-combat 4 | . . . . . . . . . . 1 . . . 1 . . . . . . . . . 1 . 1 . . . . Combat 13 | . . . . . . . . . . . 4 . . . 5 . 1 . . . . 3 . . . . . . . . Robot Hacks Applied 20 | . . . . . . . . . . 1 4 . . 1 5 . 1 . . . . 3 . 2 . 3 . . . . parse_system 1 | . . . . . . . . . . . . . . . . . 1 . . . . . . . . . . . . . find_chute 2 | . . . . . . . . . . 1 . . . 1 . . . . . . . . . . . . . . . . purge_threat 3 | . . . . . . . . . . . . . . . . . . . . . . . . 1 . 2 . . . . block_reporting 1 | . . . . . . . . . . . . . . . . . . . . . . . . 1 . . . . . . ignore_targets 12 | . . . . . . . . . . . 4 . . . 5 . . . . . . 3 . . . . . . . . formatsys_low 1 | . . . . . . . . . . . . . . . . . . . . . . . . . . 1 . . . . Relay Couplers Released 25 | . . . . . . . . 16 . . . . 1 . . . . . . 3 4 . . . . 1 . . . . Machine Destruction 25 | . . . . . . . . 16 . . . . 1 . . . . . . 3 4 . . . . 1 . . . . Attached 4 | . . . . . . . . 1 . . . . . . 1 . . . . 1 . . . . . 1 . . . . Fabnet Peak Effective % . | . . . . . . . . . . . . . . . . . . . . . . . . . . . . . . . Robots Rewired 12 | . . . . . . . . . . . . . . . . . 12 . . . . . . . . . . . . . Allies Hacked 1 | . . . . . . . . . . . . . . . . . . . . . . . 1 . . . . . . . Hacks Repelled . | . . . . . . . . . . . . . . . . . . . . . . . . . . . . . . . Allies | -11 -10 -10 -9 -9 -9 -8 -8 -8 -8 -7 -7 -7 -6 -5 -5 -5 -5 -5 -5 -5 -4 -4 -4 -3 -3 -2 -2 -2 -1 -1 -------- Run | Jun Mat Min Mat Min Exi Min Mat Gar Mat Fac Was Fac Fac Fac Was Fac Ext Cet Arc Hub Fac Was Fac Res Tes Res Qua Sec Acc Com Total Allies 64 | . . 6 . . . . . 1 . . 19 . . . . . 13 5 . . . 19 . . . 1 . . . . Largest Group 19 | . . 5 3 . . . . 1 . . 19 17 5 . . . 6 6 4 . . 19 19 . . 1 . . . . Highest-Rated Group 684 | . . 109 62 . . . . 31 . . 465 418 145 . . . 283 616 417 . . 684 684 . . 45 . . . . Highest-Rated Ally 159 | . . 31 31 . . . . 31 . . 35 35 32 . . . 159 136 136 . . 50 50 . . 45 . . . . Total Orders 12 | . . 2 . . 4 . . . . . . . . . . 1 . . . . . . . . . . . . . 5 EXPLORE 4 | . . . . . . . . . . . . . . . . 1 . . . . . . . . . . . . . 3 RETURN 8 | . . 2 . . 4 . . . . . . . . . . . . . . . . . . . . . . . . 2 Ally Attacks 679 | . . 30 8 . 28 . . 18 . . 29 179 20 . . . 60 67 8 . . . 169 . . . . . . 63 Total Damage 17765 | . . 351 116 . 126 . . 302 . . 836 3711 536 . . . 1564 2442 375 . . . 4182 . . . . . . 3224 Kills 86 | . . 7 1 . . . . 3 . . 2 29 2 . . . 9 12 1 . . . 16 . . . . . . 4 Allies Corrupted 5 | . . . . . . . . . . . . . . . . . . . . . . . 4 . . . . . . 1 Allies Melted 1 | . . . . . . . . . . . . . . . . . . . . . . . 1 . . . . . . . Turrets Deployed 2 | . . . . . . . . . . . . . . . . . . . . . . . . . . . . . . 2 Intel | -11 -10 -10 -9 -9 -9 -8 -8 -8 -8 -7 -7 -7 -6 -5 -5 -5 -5 -5 -5 -5 -4 -4 -4 -3 -3 -2 -2 -2 -1 -1 ------- Run | Jun Mat Min Mat Min Exi Min Mat Gar Mat Fac Was Fac Fac Fac Was Fac Ext Cet Arc Hub Fac Was Fac Res Tes Res Qua Sec Acc Com Robot Analysis Total 2 | . 2 . . . . . . . . . . . . . . . . . . . . . . . . . . . . . Derelict Logs Recovered 1 | . . 1 . . . . . . . . . . . . . . . . . . . . . . . . . . . . Drone Launches 17 | . . 3 . . 9 . . . . . . . . . . 3 . . . . . . . . . . . . . 2 Drone Recoveries 13 | . . 3 . . 8 . . . . . . . . . . . . . . . . . . . . . . . . 2 Exploration | -11 -10 -10 -9 -9 -9 -8 -8 -8 -8 -7 -7 -7 -6 -5 -5 -5 -5 -5 -5 -5 -4 -4 -4 -3 -3 -2 -2 -2 -1 -1 ------------- Run | Jun Mat Min Mat Min Exi Min Mat Gar Mat Fac Was Fac Fac Fac Was Fac Ext Cet Arc Hub Fac Was Fac Res Tes Res Qua Sec Acc Com Turns Passed 55160 | 129 2815 1343 3495 677 4924 645 1535 1577 1445 1724 1315 1860 3911 1320 582 2298 1716 589 699 728 846 1478 1590 1144 1822 2304 2116 1424 1534 5575 Spaces Moved 19308 | 59 978 539 1305 252 1733 251 437 566 519 610 419 697 998 500 167 706 589 180 190 219 264 485 560 561 866 789 801 547 445 2076 Core 5 | 5 . . . . . . . . . . . . . . . . . . . . . . . . . . . . . . Treads 18658 | 54 978 539 671 252 1730 251 437 566 519 610 419 697 998 494 167 706 589 180 190 219 264 485 560 561 866 789 801 547 445 2074 Legs 637 | . . . 634 . 3 . . . . . . . . . . . . . . . . . . . . . . . . . Wheels 6 | . . . . . . . . . . . . . . 6 . . . . . . . . . . . . . . . . Hover . | . . . . . . . . . . . . . . . . . . . . . . . . . . . . . . . Flight . | . . . . . . . . . . . . . . . . . . . . . . . . . . . . . . . Fastest Speed 50 | 50 160 240 160 240 160 240 240 240 240 240 160 240 160 240 160 240 240 240 240 240 240 240 240 160 160 148 148 146 226 138 Average Speed 212 | 150 234 240 207 240 245 240 240 240 240 240 235 240 212 240 225 240 240 240 240 240 240 240 240 160 161 154 199 151 227 150 Slowest Speed 330 | 160 240 240 260 240 330 240 240 240 240 240 240 240 240 290 240 240 240 240 240 240 240 320 240 160 166 166 228 235 230 230 Overloaded Moves . | . . . . . . . . . . . . . . . . . . . . . . . . . . . . . . . Propulsion Burnouts . | . . . . . . . . . . . . . . . . . . . . . . . . . . . . . . . Robots Hopped . | . . . . . . . . . . . . . . . . . . . . . . . . . . . . . . . Cave-ins Triggered 1 | . . . . . . . . . . . . . . . . . . . 1 . . . . . . . . . . . Teleports 2 | . . . . . . . . . . . . . . . . . . . . . . . . . . . . 2 . . Spacefolds 1 | . . . . . . . . . . . . . . . . . . . . . . . . . . . . . . 1 Exploration Rate (%) 53 | 4 90 99 97 62 92 60 41 85 45 19 89 22 25 11 76 22 70 63 83 21 10 90 20 12 94 28 90 33 13 85 Regions Visited 30 Branch Regions 12 Pre-discovered Areas 2 | . 1 . . . 1 . . . . . . . . . . . . . . . . . . . . . . . . . Known Exits Taken 14 | . . . 1 . . . 1 . . . . . 1 . . 1 1 1 1 1 . . 1 1 . 1 1 1 1 . Unknown Exits Taken 9 | 1 1 1 . 1 1 1 . . 1 . . 1 . . . . . . . . . . . . 1 . . . . . Scrap Searched 1 | . . 1 . . . . . . . . . . . . . . . . . . . . . . . . . . . . Spaces Dug 151 | . . . . 5 . . . . . . . . 1 2 . 39 . . 4 . 6 . 1 7 17 25 15 11 13 5 Terrain Destroyed 984 | . 3 9 24 16 44 25 . 16 10 9 3 . 78 6 10 102 27 5 22 24 101 15 21 49 40 124 55 61 55 30 Melee 25 | . . . . . . . . . . . . . . . . . . . . . . . . . . . 3 7 10 5 Projectile 360 | . 3 1 12 . 7 . . . 10 . 1 . 20 6 10 30 7 5 22 24 16 15 7 16 35 44 29 15 10 15 AOE 589 | . . 8 12 16 36 25 . 16 . 9 . . 58 . . 72 20 . . . 85 . 14 33 5 80 23 39 28 10 Terrain Rammed . | . . . . . . . . . . . . . . . . . . . . . . . . . . . . . . . Walls Destroyed . | . . . . . . . . . . . . . . . . . . . . . . . . . . . . . . . Machines Disabled . | . . . . . . . . . . . . . . . . . . . . . . . . . . . . . . . Actions | -11 -10 -10 -9 -9 -9 -8 -8 -8 -8 -7 -7 -7 -6 -5 -5 -5 -5 -5 -5 -5 -4 -4 -4 -3 -3 -2 -2 -2 -1 -1 --------- Run | Jun Mat Min Mat Min Exi Min Mat Gar Mat Fac Was Fac Fac Fac Was Fac Ext Cet Arc Hub Fac Was Fac Res Tes Res Qua Sec Acc Com Total 30343 | 80 1335 587 1839 282 2270 280 713 685 622 759 644 885 2439 603 291 1140 823 315 379 342 404 714 748 734 1252 1745 1138 961 871 4463 Wait 6728 | . 229 27 315 4 336 20 103 21 17 44 104 167 1144 57 21 232 39 95 130 46 35 115 79 50 187 599 103 187 183 2039 Move 19280 | 58 977 538 1304 251 1732 250 437 565 518 610 418 696 997 500 166 705 588 179 189 218 264 484 559 560 865 788 800 546 444 2074 Hop . | . . . . . . . . . . . . . . . . . . . . . . . . . . . . . . . Pick Up 293 | 6 19 5 26 . 27 . 8 7 5 4 5 6 19 4 7 4 3 5 4 5 10 5 13 10 16 18 14 7 8 23 Fast Attach 339 | 7 3 1 12 2 18 . 13 3 5 8 14 4 12 9 6 16 14 4 7 4 1 14 9 12 28 39 17 18 10 29 Attach 129 | . 1 . 4 . 8 . . 4 1 . 3 . 19 2 1 1 2 1 2 3 3 1 5 2 9 16 7 14 7 13 Detach 74 | . . . . . 2 . 1 1 . . 1 . 11 1 4 2 . . . 3 . . 1 . 7 7 7 13 7 6 Swap 618 | . 12 5 11 2 18 2 16 10 6 18 14 2 47 5 11 55 32 8 3 21 37 9 25 25 10 50 39 42 54 29 Drop 550 | . 9 8 34 1 48 . 27 9 13 15 25 9 15 9 21 21 9 9 10 6 7 22 17 22 38 39 28 13 16 50 Fire 2122 | 9 85 3 133 22 81 8 107 56 57 60 60 . 175 16 54 102 33 14 34 36 46 64 40 53 92 188 100 81 127 186 Melee 86 | . . . . . . . . . . . . . . . . . . . . . . . . . . . 23 40 13 10 Ram . | . . . . . . . . . . . . . . . . . . . . . . . . . . . . . . . Kick . | . . . . . . . . . . . . . . . . . . . . . . . . . . . . . . . Crush 4 | . . . . . . . 1 . . . . 1 . . . . . . . . 1 . . . . 1 . . . . Escape Stasis 21 | . . . . . . . . 9 . . . . . . . 2 8 . . . . . . . . . . . 2 . Rewire 99 | . . . . . . . . . . . . . . . . . 95 . . . . . . . . . . . . 4 Trap . | . . . . . . . . . . . . . . . . . . . . . . . . . . . . . . . Miscellaneous . | . . . . . . . . . . . . . . . . . . . . . . . . . . . . . . . Route ------- -11/Junkyard -10/Materials (discovered 3 exits: *Mat x2 / *Min) -10/Mines (discovered 2 exits: *Mat x2) -9/Materials (discovered 6 exits: *Mat x3 / *Min x2 / *Sto) -9/Mines -9/Exiles -8/Mines -8/Materials -8/Garrison (discovered 3 exits: *Mat x3) -8/Materials -7/Factory (discovered 2 exits: Low x2) -7/Waste -7/Factory -6/Factory (discovered 4 exits: *Fac x2 / *Low x2) -5/Factory (discovered 4 exits: Upp x2 / *Ext x2) -5/Waste -5/Factory (discovered 4 exits: Upp x2 / *Ext x2) -5/Extension (discovered 3 exits: *Fac x2 / *Cet) -5/Cetus (discovered 2 exits: *Fac / *Arc) -5/Archives (discovered 3 exits: *Fac / *Hub x2) -5/Hub_04(d) (discovered 4 exits: *Fac x4) -4/Factory (discovered 6 exits: *Res x4 / Upp x2) -4/Waste -4/Factory (discovered 3 exits: *Res / Upp x2) -3/Research (discovered 3 exits: Arm / *Tes x2) -3/Testing -2/Research (discovered 5 exits: Acc x3 / *Qua x2) -2/Quarantine -2/Section 7 -1/Access -1/Command (discovered 2 exits: [*Sur x2]) To Fleet Rendezvous History --------- Turn | Location | Event 10 | -11/Junkyard | Discovered new exit (range 15) 130 | -11/Junkyard | Entered Materials 305 | -10/Materials | Build established: Mutant 491 | -10/Materials | Discovered new exit (range 15) 976 | -10/Materials | Discovered new exit (range 4) 1938 | -10/Materials | Repaired Lgt. Treads 2234 | -10/Materials | Discovered new exit (range 16) 2945 | -10/Materials | Entered Mines 2992 | -10/Mines | Assisted by bots powering up and referring to "LRC-V3" 3288 | -10/Mines | Found a damaged Exp. Sensor Array with a note attached 3296 | -10/Mines | Found Prototype Device 3383 | -10/Mines | Discovered new exit (range 9) 3518 | -10/Mines | Learned Materials emergency access door positions 3945 | -10/Mines | Found the Drone Emporium 3963 | -10/Mines | Found Prototype Device 3963 | -10/Mines | Identified Thief Drone Bay 4130 | -10/Mines | Received a Mining Laser from a helpful Derelict 4147 | -10/Mines | Discovered new exit (range 6) 4288 | -10/Mines | Entered Materials 4288 | -9/Materials | Accompanied by 3 allies 4288 | -9/Materials | Evolved 2 slots: Propulsion x1, Utility x1 4293 | -9/Materials | Led the pair of lost Derelicts to an unsafe place 4300 | -9/Materials | Identified exit to Mines 4300 | -9/Materials | Identified exit to Storage 5760 | -9/Materials | Repaired Lgt. Treads 5769 | -9/Materials | Discovered new exit (range 16) 6064 | -9/Materials | Identified Exp. Sensor Array 6164 | -9/Materials | Discovered new exit (range 15) 6241 | -9/Materials | Repaired Med. Armor Plating 6428 | -9/Materials | Build established: Scavenger-Mutant 6672 | -9/Materials | Discovered new exit (range 4) 6940 | -9/Materials | Build established: Mutant 7488 | -9/Materials | First assault squad dispatched 7591 | -9/Materials | Destroyed 8 combat bots 7783 | -9/Materials | Entered Mines 8218 | -9/Mines | Destroyed 7 combat bots 8440 | -9/Mines | Assembled infested the area 8448 | -9/Mines | Deemed a non-threat by the Exiles lab entrance 8448 | -9/Mines | Discovered new exit (range 5) 8460 | -9/Mines | Entered Exiles 8534 | -9/Exiles | Met 8R-AWN 8574 | -9/Exiles | Met EX-HEX 8666 | -9/Exiles | Met EX-DEC 8680 | -9/Exiles | Learned location of Zion (-6) 8777 | -9/Exiles | Visited The Gauntlet 9141 | -9/Exiles | Met EX-BIN 9297 | -9/Exiles | Discovered new exit (range 14) 9900 | -9/Exiles | Aligned with FarCom system 9903 | -9/Exiles | Given EX-Vault access code 9958 | -9/Exiles | Opened EX-Vault 9971 | -9/Exiles | Found Prototype Energy Cannon 9971 | -9/Exiles | Identified Firepult 9980 | -9/Exiles | Found Prototype Energy Gun 9980 | -9/Exiles | Identified AWS/Thermal 9992 | -9/Exiles | Found Prototype Leg 9992 | -9/Exiles | Identified Potential Leg 9998 | -9/Exiles | Found Potential Leg 10084 | -9/Exiles | Warned to stay clear of 0b10 Research branches 10324 | -9/Exiles | Attacked by the Exiles 10349 | -9/Exiles | Core integrity fell below 50% 10471 | -9/Exiles | Found Prototype Device 10471 | -9/Exiles | Identified AS-neutralizer No. 17b 11051 | -9/Exiles | Destroyed 8R-AWN 11203 | -9/Exiles | Found 8R-AWN's Boregun 11204 | -9/Exiles | Found 8R-AWN's Boregun 11914 | -9/Exiles | Destroyed EX-DEC 11946 | -9/Exiles | Destroyed EX-HEX 11956 | -9/Exiles | Destroyed EX-BIN 12092 | -9/Exiles | Found Prototype Device 12092 | -9/Exiles | Identified System Purifier 12160 | -9/Exiles | Found Prototype Processor 12291 | -9/Exiles | Found Deploy-a-Sentry 13326 | -9/Exiles | Identified Exp. Core Analyzer 13384 | -9/Exiles | Left Exiles lab with Deploy-a-Sentry 13384 | -9/Exiles | Entered Mines 14005 | -8/Mines | Discovered new exit (range 5) 14029 | -8/Mines | Entered Materials 14029 | -8/Materials | Evolved 2 slots: Utility x2 14872 | -8/Materials | Repaired Imp. Treads 15065 | -8/Materials | Garrison activated, responded to threat 15452 | -8/Materials | Garrison activated, responded to threat 15564 | -8/Materials | Identified exit to Garrison 15564 | -8/Materials | Entered Garrison 15643 | -8/Garrison | Rescued a captive Derelict 15692 | -8/Garrison | Triggered checkpoint 15747 | -8/Garrison | Destroyed 7 combat bots 15854 | -8/Garrison | Triggered checkpoint 15854 | -8/Garrison | Garrison Relay disabled 15946 | -8/Garrison | Discovered new exit (range 15) 15960 | -8/Garrison | Triggered checkpoint 16160 | -8/Garrison | Triggered checkpoint 16309 | -8/Garrison | Discovered new exit (range 10) 16400 | -8/Garrison | Triggered checkpoint 16441 | -8/Garrison | Discovered new exit (range 60) 16441 | -8/Garrison | Discovered new exit (range 10) 16441 | -8/Garrison | Discovered new exit (range 70) 16512 | -8/Garrison | Installed Relay Interface Framework 16560 | -8/Garrison | Garrison Relay disabled 16597 | -8/Garrison | Garrison Relay disabled 16815 | -8/Garrison | Garrison Relay disabled 16883 | -8/Garrison | Expanded RIF knowledge: Coupler Efficiency 16920 | -8/Garrison | Core integrity fell below 50% 17141 | -8/Garrison | Entered Materials 17249 | -8/Materials | Build established: Scavenger-Mutant 17547 | -8/Materials | Discovered new exit (range 8) 18586 | -8/Materials | Entered Factory 18586 | -7/Factory | Evolved 2 slots: Propulsion x1, Utility x1 18955 | -7/Factory | Identified exit to Lower Caves 19314 | -7/Factory | Cargo convoy interrupted 19907 | -7/Factory | Found Prototype Launcher 19908 | -7/Factory | Identified Rocket Array 20310 | -7/Factory | Sucked down chute 20310 | -7/Factory | Entered Waste 20342 | -7/Waste | Spotted C-40 Crusher 20382 | -7/Waste | Spotted C-40 Crusher 20434 | -7/Waste | Spotted C-40 Crusher 20462 | -7/Waste | Destroyed C-40 Crusher 20509 | -7/Waste | Destroyed C-40 Crusher 20524 | -7/Waste | Spotted C-40 Crusher 20574 | -7/Waste | Spotted C-40 Crusher 20604 | -7/Waste | Spotted C-40 Crusher 20617 | -7/Waste | Crushed by Compactor (1 part destroyed) 20626 | -7/Waste | Crushed by Compactor (0 parts destroyed, 1 dropped) 20632 | -7/Waste | Crushed by Compactor (0 parts destroyed, 1 dropped) 20638 | -7/Waste | Crushed by Compactor (0 parts destroyed, 1 dropped) 20641 | -7/Waste | Crushed by Compactor (1 part destroyed) 20645 | -7/Waste | Destroyed C-40 Crusher 20685 | -7/Waste | Found Damper Plating 20789 | -7/Waste | Destroyed C-40 Crusher 20846 | -7/Waste | Warlord forces began an assault 20885 | -7/Waste | Allies destroyed C-40 Crusher 20964 | -7/Waste | Allies destroyed C-40 Crusher 21058 | -7/Waste | Discovered new exit (range 13) 21478 | -7/Waste | Found Damper Plating 21625 | -7/Waste | Entered Factory 21625 | -7/Factory | Accompanied by 17 allies 22283 | -7/Factory | Repaired Broken Exp. Sensor Array 23032 | -7/Factory | Found Rocket Array 23099 | -7/Factory | Garrison activated, responded to threat 23333 | -7/Factory | Discovered new exit (range 16) 23485 | -7/Factory | Entered another Factory area 23485 | -6/Factory | Accompanied by 5 allies 23485 | -6/Factory | Evolved 2 slots: Utility x2 23835 | -6/Factory | First assault squad dispatched 24346 | -6/Factory | Discovered new exit (range 5) 24398 | -6/Factory | Identified exit to Lower Caves 24775 | -6/Factory | Discovered new exit (range 16) 24818 | -6/Factory | Identified exit to Factory 25307 | -6/Factory | Garrison activated, responded to threat 25377 | -6/Factory | Destroyed 7 combat bots 25631 | -6/Factory | Garrison activated, responded to threat 25640 | -6/Factory | Discovered exit to Factory (range 15) 25911 | -6/Factory | Lost 4 parts (1p1n2u) 26826 | -6/Factory | Garrison activated, responded to threat 27396 | -6/Factory | Entered another Factory area 27396 | -5/Factory | Evolved 2 slots: Power x1, Weapon x1 27436 | -5/Factory | Identified exit to Upper Caves 27436 | -5/Factory | Identified exit to Extension 28716 | -5/Factory | Sucked down chute 28716 | -5/Factory | Entered Waste 28731 | -5/Waste | EMP discharged 28746 | -5/Waste | Destroyed C-40 Crusher 28793 | -5/Waste | Spotted C-40 Crusher 28831 | -5/Waste | EMP discharged 28831 | -5/Waste | System corruption reached 10% 28843 | -5/Waste | Spotted C-40 Crusher 28860 | -5/Waste | Destroyed C-40 Crusher 28874 | -5/Waste | Found Damper Plating 28895 | -5/Waste | Found Damper Plating 28931 | -5/Waste | EMP discharged 29001 | -5/Waste | Destroyed C-40 Crusher 29015 | -5/Waste | Spotted C-40 Crusher 29031 | -5/Waste | EMP discharged 29038 | -5/Waste | Destroyed C-40 Crusher 29086 | -5/Waste | Spotted C-40 Crusher 29086 | -5/Waste | Spotted C-40 Crusher 29131 | -5/Waste | EMP discharged 29185 | -5/Waste | Destroyed C-40 Crusher 29208 | -5/Waste | Found Damper Plating 29226 | -5/Waste | Found Damper Plating 29231 | -5/Waste | EMP discharged 29256 | -5/Waste | Discovered new exit (range 13) 29285 | -5/Waste | Identified exit to Factory 29298 | -5/Waste | Entered Factory 30478 | -5/Factory | Repaired Hvy. Treads 30542 | -5/Factory | Repaired Antimatter Reactor 31596 | -5/Factory | Entered Extension 32022 | -5/Extension | Rescued A7 32023 | -5/Extension | Build established: Scavenger-Tank 32311 | -5/Extension | Energy Cycler disabled 32312 | -5/Extension | Rescued a captive Derelict 32312 | -5/Extension | Rescued a captive Derelict 32314 | -5/Extension | Rescued a captive Derelict 32319 | -5/Extension | Rescued a captive Derelict 32397 | -5/Extension | Build established: Scavenger-Mutant 32860 | -5/Extension | Build established: Scavenger-Tank 32971 | -5/Extension | Spotted B-75 Beast 32994 | -5/Extension | Destroyed B-75 Beast 33001 | -5/Extension | Destroyed B-75 Beast 33018 | -5/Extension | Discovered new exit (range 16) 33257 | -5/Extension | Discovered new exit (range 16) 33257 | -5/Extension | Discovered new exit (range 16) 33294 | -5/Extension | Identified exit to Cetus 33312 | -5/Extension | Entered Cetus 33312 | -5/Cetus | Accompanied by 3 allies (A7) 33317 | -5/Cetus | Acquired a Cetus Manufacturing Module code from A7 33343 | -5/Cetus | Spotted Cetus Guard 33343 | -5/Cetus | Spotted Cetus Guard 33344 | -5/Cetus | Destroyed Cetus Guard 33345 | -5/Cetus | Spotted Cetus Guard 33345 | -5/Cetus | Spotted Cetus Guard 33351 | -5/Cetus | Destroyed Cetus Guard 33351 | -5/Cetus | Allies destroyed Cetus Guard 33354 | -5/Cetus | Destroyed Cetus Guard 33484 | -5/Cetus | Started Cetus Manufacturing Module 33509 | -5/Cetus | Manufactured an Enhanced Grunt 33534 | -5/Cetus | Manufactured an Enhanced Grunt 33559 | -5/Cetus | Manufactured an Enhanced Grunt 33584 | -5/Cetus | Manufactured an Enhanced Grunt 33609 | -5/Cetus | Manufactured an Enhanced Grunt 33698 | -5/Cetus | Discovered new exit (range 16) 33741 | -5/Cetus | Spotted Cetus Guard 33742 | -5/Cetus | Spotted Cetus Guard 33746 | -5/Cetus | Spotted Cetus Guard 33746 | -5/Cetus | Spotted Cetus Guard 33760 | -5/Cetus | Discovered new exit (range 16) 33762 | -5/Cetus | Allies destroyed Cetus Guard 33763 | -5/Cetus | Destroyed Cetus Guard 33765 | -5/Cetus | Allies destroyed Cetus Guard 33771 | -5/Cetus | Allies destroyed Cetus Guard 33810 | -5/Cetus | Met Revision 17 33894 | -5/Cetus | Identified exit to Archives 33901 | -5/Cetus | Entered Archives 33901 | -5/Archives | Accompanied by 4 allies (A7) 34037 | -5/Archives | Found Prototype Device 34037 | -5/Archives | Identified Exp. Thermal Shield 34183 | -5/Archives | Discovered new exit (range 13) 34205 | -5/Archives | Crushed by falling debris 34244 | -5/Archives | Discovered new exit (range 14) 34356 | -5/Archives | Discovered new exit (range 14) 34521 | -5/Archives | Identified exit to Factory 34597 | -5/Archives | Identified exit to Hub_04(d) 34600 | -5/Archives | Entered Hub_04(d) 34784 | -5/Hub_04(d) | Network Hub disabled 35135 | -5/Hub_04(d) | Garrison activated, responded to threat 35179 | -5/Hub_04(d) | Destroyed 8 combat bots 35328 | -5/Hub_04(d) | Entered Factory 35328 | -4/Factory | Evolved 2 slots: Utility x2 35578 | -4/Factory | First assault squad dispatched 35681 | -4/Factory | Identified exit to Research 35681 | -4/Factory | Identified exit to Upper Caves 35715 | -4/Factory | Build established: Scavenger-Skirmisher 36031 | -4/Factory | Build established: Scavenger-Mutant 36083 | -4/Factory | Destroyed 7 combat bots 36174 | -4/Factory | Sucked down chute 36174 | -4/Factory | Entered Waste 36482 | -4/Waste | Spotted C-40 Crusher 36484 | -4/Waste | Destroyed C-40 Crusher 36496 | -4/Waste | Spotted C-40 Crusher 36532 | -4/Waste | Spotted C-40 Crusher 36551 | -4/Waste | Destroyed C-40 Crusher 36601 | -4/Waste | Spotted C-40 Crusher 36603 | -4/Waste | Destroyed C-40 Crusher 36634 | -4/Waste | Spotted C-40 Crusher 36737 | -4/Waste | Destroyed C-40 Crusher 36818 | -4/Waste | Destroyed C-40 Crusher 36854 | -4/Waste | Spotted C-40 Crusher 36863 | -4/Waste | Destroyed C-40 Crusher 36961 | -4/Waste | Discovered new exit (range 15) 37093 | -4/Waste | Build established: Scavenger-Skirmisher 37435 | -4/Waste | Warlord forces began an assault 37642 | -4/Waste | Found Broken Adv. Powered Armor 37650 | -4/Waste | Identified exit to Factory 37652 | -4/Waste | Entered Factory 37652 | -4/Factory | Accompanied by 19 allies 38102 | -4/Factory | Build established: Scavenger-Mutant 38430 | -4/Factory | First assault squad dispatched 38577 | -4/Factory | System corruption reached 10% 38951 | -4/Factory | Discovered exit to Research (range 16) 39242 | -4/Factory | Entered Research 39242 | -3/Research | Evolved 2 slots: Propulsion x2 39258 | -3/Research | Identified exit to Armory 39258 | -3/Research | Identified exit to Testing 39896 | -3/Research | Found Prototype Launcher 39896 | -3/Research | Identified Tactical Quantum Warhead 39980 | -3/Research | Spotted B-86 Titan 40386 | -3/Research | Entered Testing 40419 | -3/Testing | Found Prototype Energy Gun 40419 | -3/Testing | Identified Warp Gun 40711 | -3/Testing | System corruption reached 10% 40768 | -3/Testing | Spotted Striker 40779 | -3/Testing | Spotted Striker 41210 | -3/Testing | Found Unknown Device 41210 | -3/Testing | Identified Quantum Capacitor 41266 | -3/Testing | Found Unknown Device 41266 | -3/Testing | Identified Antimissile System 41351 | -3/Testing | Discovered new exit (range 9) 41464 | -3/Testing | Repaired Hvy. Treads 41785 | -3/Testing | Found Prototype Processor 41785 | -3/Testing | Identified Spectral Analyzer 41931 | -3/Testing | Found Prototype Hackware 41931 | -3/Testing | Identified Ghost Barrier 41982 | -3/Testing | Found Prototype Ballistic Gun 41982 | -3/Testing | Identified Hyp. Multirail 42102 | -3/Testing | Found Prototype Energy Cannon 42102 | -3/Testing | Identified Null Cannon 42208 | -3/Testing | Entered Research 42208 | -2/Research | Evolved 2 slots: Power x1, Utility x1 42229 | -2/Research | Build established: Hacker-Mutant 42378 | -2/Research | Destroyed 13 combat bots 42687 | -2/Research | Found Prototype Launcher 42687 | -2/Research | Identified Enh. Gamma Bomb Array 43404 | -2/Research | Build established: Scavenger-Mutant 43458 | -2/Research | First assault squad dispatched 43533 | -2/Research | System corruption reached 10% 43571 | -2/Research | Lost 6 parts (1n4u1w) 43576 | -2/Research | Identified exit to Access 43955 | -2/Research | Repaired Biometal Heavy Treads 44019 | -2/Research | Repaired Adv. Medium Treads 44059 | -2/Research | Build established: Hacker-Mutant 44082 | -2/Research | Repaired Adv. Medium Treads 44152 | -2/Research | Repaired Com. HERF Cannon 44192 | -2/Research | Repaired Insulated Plating 44463 | -2/Research | Identified exit to Quarantine 44512 | -2/Research | Entered Quarantine 44535 | -2/Quarantine | Found Alien Artifact 44535 | -2/Quarantine | Identified Phase Armor 44708 | -2/Quarantine | Found Alien Artifact 44708 | -2/Quarantine | Identified Phase Redirector 44773 | -2/Quarantine | System corruption reached 30% 45010 | -2/Quarantine | Found Alien Artifact 45104 | -2/Quarantine | Repaired Hvy. Treads 45139 | -2/Quarantine | Repaired Adv. Medium Treads 45523 | -2/Quarantine | Found Alien Slashing Weapon 45523 | -2/Quarantine | Identified Sigix Broadsword 45601 | -2/Quarantine | Cryocooling Duct disabled 45616 | -2/Quarantine | Ambient heat levels rising (+20) 45616 | -2/Quarantine | Non-combat units ordered to evacuate 45663 | -2/Quarantine | Discovered exit to Access (range 13) 45795 | -2/Quarantine | Core integrity fell below 50% 45917 | -2/Quarantine | Found Alien Artifact 45917 | -2/Quarantine | Identified Core Reset Matrix 45917 | -2/Quarantine | Identified Subatomic Replicator 45917 | -2/Quarantine | Used Core Reset Matrix 45921 | -2/Quarantine | Detected hypermatrix surge 45921 | -2/Quarantine | Sensed 11 artifacts in vicinity 46137 | -2/Quarantine | Found Transdimensional Reconstructor 46147 | -2/Quarantine | Found Hpw. Transdimensional Reconstructor 46152 | -2/Quarantine | Found Transdimensional Reconstructor 46461 | -2/Quarantine | Spotted Fortress 46619 | -2/Quarantine | Discovered new exit (range 5) 46625 | -2/Quarantine | Identified exit to Section 7 46628 | -2/Quarantine | Entered Section 7 46629 | -2/Section 7 | Sensed 21 artifacts in vicinity 46994 | -2/Section 7 | Found Integrated Mediator 46994 | -2/Section 7 | Installed Integrated Mediator, increased core attachment efficiency. 47161 | -2/Section 7 | Found Core Reset Matrix 47163 | -2/Section 7 | Sensed 19 artifacts in vicinity 47275 | -2/Section 7 | Build established: Scavenger-Assassin 47559 | -2/Section 7 | Warped through subspace 47573 | -2/Section 7 | Spotted S7 Guard 47587 | -2/Section 7 | Warped through subspace 47705 | -2/Section 7 | Destroyed 7 combat bots 47754 | -2/Section 7 | Core integrity fell below 20% 47764 | -2/Section 7 | Destroyed S7 Guard 47773 | -2/Section 7 | Found Corrupted Prototype Protection 47773 | -2/Section 7 | Identified Hvy. Regenerative Plating 47793 | -2/Section 7 | Lost 3 parts (1p2n) 47969 | -2/Section 7 | Found Spacefold Activator 48017 | -2/Section 7 | Found Integrated Reactor 48017 | -2/Section 7 | Installed Integrated Reactor, increased core energy generation (+10) 48052 | -2/Section 7 | Entered Access 48052 | -1/Access | Evolved 2 slots: Power x1, Weapon x1 48113 | -1/Access | Garrison activated, responded to threat 48256 | -1/Access | Identified exit to Command 48351 | -1/Access | Build established: Generator-Assassin 48718 | -1/Access | Found Unknown Device 48718 | -1/Access | Identified Quantum Capacitor 48769 | -1/Access | Destroyed 10 combat bots 49052 | -1/Access | First assault squad dispatched 49586 | -1/Access | Entered Command 49773 | -1/Command | Build established: Generator-Mutant 49781 | -1/Command | Found Quantum Capacitor 49870 | -1/Command | System corruption reached 10% 49968 | -1/Command | Found Antimissile System 50118 | -1/Command | First assault squad dispatched 50254 | -1/Command | Spotted M Guard 50255 | -1/Command | Spotted Combat Programmer 50255 | -1/Command | Spotted Combat Programmer 50256 | -1/Command | Spotted M Guard 50275 | -1/Command | Destroyed Combat Programmer 50280 | -1/Command | Destroyed Combat Programmer 50290 | -1/Command | Destroyed M Guard 50302 | -1/Command | Destroyed M Guard 50302 | -1/Command | All MAIN.C guards destroyed 50318 | -1/Command | System corruption reached 30% 50332 | -1/Command | Found Corrupted Prototype Device 50332 | -1/Command | Identified AEGIS Remote Shield 50336 | -1/Command | Used Subatomic Replicator to replicate Deploy-a-Sentry 50469 | -1/Command | Met MAIN.C 50480 | -1/Command | DAS Turret deployed 50481 | -1/Command | DAS Turret deployed 50496 | -1/Command | 0b10 Conduit disabled 50498 | -1/Command | Allies destroyed MAIN.C Shell 50499 | -1/Command | MAIN.C activated Command garrisons 50561 | -1/Command | Destroyed MAIN.C 50591 | -1/Command | Destroyed 10 combat bots 50594 | -1/Command | Lost 4 parts (1p1u2w) 50598 | -1/Command | Discovered new exit (range 34) 50598 | -1/Command | Discovered new exit (range 112) 50598 | -1/Command | Extracted map data and part IDs from MAIN.C's data core 50668 | -1/Command | Found Exp. System Purifier 51131 | -1/Command | Found Vortex Chain Reactor 51134 | -1/Command | Found Zero-point Reactor 51154 | -1/Command | Found Exp. Weapon Cycler 51157 | -1/Command | Found Exp. Force Field 51159 | -1/Command | Found Adv. Particle Accelerator 51225 | -1/Command | Found AEGIS Remote Shield 51402 | -1/Command | Build established: Generator-Gunner 52330 | -1/Command | Build established: Generator-Mutant 55161 | *** | Heading to fleet! Last Messages --------------- 53531_ The Access Shell folds into the floor. 53768_ Attempting to rewire H-88 Terminator. 53768_ H-88 Terminator is broken beyond repair. 53789_ Attempting to rewire P-80 Master. 53789_ P-80 Master cannot be rewired. 53824_ K-01 Serf system corruption misinterpreted. 53824_ K-01 Serf triggered Shock Trap. 53824_ The floor emits a surge of raw power. 53825_ K-01 Serf system terminally corrupted. 54322_ Dropped Graviton Cannon. 54322_ Dropped Hvy. Quantum Rifle. 54334_ Acquired 5 matter. 54523_ Attempting to rewire B-74 Champion. 54523_ B-74 Champion is broken beyond repair. 54524_ Sneak attack on B-74 Champion. 54527_ B-74 Champion destroyed. 54547_ Sneak attack on S-43 Plague. 54547_ Destroyed Xenon Bombardment Thruster. 54547_ S-43 Plague destroyed. [Achievement: Tester] Map ----- +----------------------------------------------------+ | ########!! *!% = ! % | | | # #%* =%= % % | | + #* "" " ###### "" | | """" # # ] """ "" #??#?# "" | | """" # # """" """ ####?# "" | | """" # # "" "" ""##?######### | | """" # " ""##?????????? | | %= # # =% ""############ | | * # # % * T#??????????? | | # # "" ""[%% ""#??????????? | | ^ # # * """" """"%*= "#??????????? | | # ! + %= """" """=[= "#??????????? | | ^ # ##% "" " =**###??????????? | | ^ # = ## = =%#????????????? | | "" # ## =%= =#????????????? | | ^ """ ###+##### * #????????????? | | ^ T" #?# #???# ### #????????????? | | ^ """ #?# #???# #?### ##????????????? | | "" #?# #####+###?# % #?????????????? | | = ### ## #?# #?????????????? | | ## + ### #?????????????? | | * ##### + % #?????????????? | | #+####### #???# ####### #?????????????? | | #??# #???# ####### #?????????????? | | #?## ##??# ## ## #?????????????? | | #?# #######+#### @ ## #?????????????? | | #?# "" *% ## #?????????????? | | #?# T" ## #?????????????? | | #?# ##### ####### #?????????????? | | ######?######???# #?????# #?????????????? | | ################# #?????# #?????????????? | | # ! #?????########?????????????? | | # *% #??????????????????????????? | | # ###+###+#######????????????????????? | | [ # # #????????????????????? | | # # #????????????????????? | | " """" + # %== ""T"" !#????????????????????? | | " """" # + = """"" #????????????????????? | | " """" ! #### #????????????????????? | | " """" #??# = #????????????????????? | | ############??###############????????????????????? | | ?????????????????????????????????????????????????? | | ?????????????????????????????????????????????????? | | ?????????????????????????????????????????????????? | | ?????????????????????????????????????????????????? | | ?????????????????????????????????????????????????? | | ?????????????????????????????????????????????????? | | ?????????????????????????????????????????????????? | | ?????????????????????????????????????????????????? | | ?????????????????????????????????????????????????? | +----------------------------------------------------+ Best States ------------- Heat Dissipation 170 Coolant Potential 220 Energy Generation 113 Energy Capacity 1350 Matter Stores 500 Matter Capacity 500 Sight Range 24 Robot Scan Range 20 Terrain Scan Range 16 Terrain Scan Density 210 Jamming Range 16 Additional Mass Support 20 Armor Coverage 3200 Resistance: EX 50 Resistance: EM 90 Point Defense Rating 480 Weapon Cycling 20 Evasion (%) 40 Targeting Accuracy 8 Core Analysis 8 Recoil Reduction 6 Energy Filtering 50 Particle Charging 25 Kinecelleration 40 Offensive Hacking 24 Defensive Hacking 24 Relay Coupler Types 1 Relay Coupler Value 48 Item Schematics ----------------- None Robot Schematics ------------------ None Fabricated ------------ Nothing Alien Tech Used ----------------- Phase Armor Phase Redirector Sigix Broadsword Core Reset Matrix Integrated Mediator High-powered Transdimensional Reconstructor Transdimensional Reconstructor Integrated Reactor Subatomic Replicator Spacefold Activator Achievements -------------- Preemptive Strike Prison Break Project G-00 Tester Unlikely Earthworm void main() Challenges ------------ None Game ------ Seed SeismicSensorShotgun Manual? 0 Play Time 06:40:36 Cumulative 64.1 hours Start 2023.12.09 @ 15:46:33 End 2023.12.15 @ 17:17:37 Sessions 37 Manual Loads 0 Difficulty Rogue Special Mode None Game No. 12 Rogue 11 Adventurer 1 Explorer 0 Win Type 2 Total 3 Types 0/0/3/0/0/0/0/0/0 Lore% 31 Gallery% 54 Achievement% 49 Wizard Run 0 Options --------- ASCII 0 Keyboard 0 Movement Mouse Keybinds 0 Fullscreen 1 Font 18/Terminus Map View 76x50 Tactical HUD 1 Map Filters NONE Filters NONE Steam 0 RUN: 22afc439-7311-44ca-999c-59bbc8826aab